Departmental Family,Entity,Date,Expense type,Expense area,Supplier,Transaction Number,Amount,Description
Department for Education,DEPARTMENT FOR EDUCATION,27/04/2016,Facilities,Property Asset Management Group,BAM CONSTRUCTION LTD,1100087,887896.80,Programme management for construction work
Department for Education,DEPARTMENT FOR EDUCATION,04/04/2016,Grants,Government Equalities Office,EQUALITY & HUMAN RIGHTS COMMISSION,2100015,2384451.00,Current grants paid to organisations including arms length bodies and educational establishments
Department for Education,DEPARTMENT FOR EDUCATION,05/04/2016,Grants,"Children's Services, Equalities and Communication Safeguarding Group",OFFICE OF THE CHILDRENS COMMISSIONER,2100016,146708.46,Current grants paid to organisations including arms length bodies and educational establishments
Department for Education,DEPARTMENT FOR EDUCATION,13/04/2016,Funding to pay Teachers' Pensions,Teachers and Teaching Group,TPS GOVERNMENT BANKING SERVICE ACCOUNT,2100017,716761.99,Pension related payments to retired teachers where liability has transferred to SoS
Department for Education,DEPARTMENT FOR EDUCATION,13/04/2016,Funding to pay Teachers' Pensions,Teachers and Teaching Group,TPS GOVERNMENT BANKING SERVICE ACCOUNT,2100018,269676.36,Pension related payments to retired teachers where liability has transferred to SoS
Department for Education,DEPARTMENT FOR EDUCATION,13/04/2016,Funding to pay Teachers' Pensions,Teachers and Teaching Group,TPS GOVERNMENT BANKING SERVICE ACCOUNT,2100018,6123.71,Pension related payments to retired teachers where liability has transferred to SoS
Department for Education,NATIONAL COLLEGE FOR TEACHING AND LEADERSHIP AGENCY,01/04/2016,Programme costs,Delivery Directorate,TEACH FIRST,4000233738,2255496.92,Funding to deliver policies (excluding consultancy) paid to third parties via a service delivery contract
Department for Education,DEPARTMENT FOR EDUCATION,01/04/2016,Learning and Development,Human Resources Group,CABINET OFFICE,4000233745,87427.60,Staff training and development including materials and courses
Department for Education,STANDARDS AND TESTING AGENCY,01/04/2016,Professional Services Consultancy and Contingent Labour,Standards and Testing Agency Admin,GOVERNMENT LEGAL DEPARTMENT,4000233747,29057.61,"Advisory services including fees, travel and expenses"
Department for Education,NATIONAL COLLEGE FOR TEACHING AND LEADERSHIP AGENCY,01/04/2016,Professional Services Other,Operations Directorate,GOVERNMENT LEGAL DEPARTMENT,4000233747,134.40,Legal services provided by Treasury Solicitor 
Department for Education,NATIONAL COLLEGE FOR TEACHING AND LEADERSHIP AGENCY,01/04/2016,Programme costs,Delivery Directorate,UNIVERSITY OF BRIGHTON,4000233776,560533.00,Funding to deliver policies (excluding consultancy) paid to third parties via a service delivery contract
Department for Education,DEPARTMENT FOR EDUCATION,01/04/2016,Grants,"Assessment, Curriculum and General Qualifications Group",CHOIR SCHOOLS ASSOCIATION BURSARY TRUST LTD,4000233801,8360953.00,Grants to educational establishments or not for profit organisations including other businesses
Department for Education,NATIONAL COLLEGE FOR TEACHING AND LEADERSHIP AGENCY,01/04/2016,Programme costs,Delivery Directorate,Teach First Initial Teacher Development,4000233802,1798257.33,Funding to deliver policies (excluding consultancy) paid to third parties via a service delivery contract
Department for Education,DEPARTMENT FOR EDUCATION,01/04/2016,Professional Services Other,Adoption and Children in Care Division,TNS BMRB,4000233809,44202.61,Research and evaluation activities
Department for Education,NATIONAL COLLEGE FOR TEACHING AND LEADERSHIP AGENCY,01/04/2016,Professional Services Other,Operations Directorate,CARAT,4000233813,26.79,Research and evaluation activities
Department for Education,NATIONAL COLLEGE FOR TEACHING AND LEADERSHIP AGENCY,01/04/2016,Communications,Operations Directorate,CARAT,4000233813,53284.70,"Publicity, advertising, media advertising campaigns (excluding recruitment adverts)"
Department for Education,NATIONAL COLLEGE FOR TEACHING AND LEADERSHIP AGENCY,01/04/2016,Communications,Operations Directorate,CARAT,4000233813,49919.62,Marketing services
Department for Education,NATIONAL COLLEGE FOR TEACHING AND LEADERSHIP AGENCY,01/04/2016,Communications,Operations Directorate,CARAT,4000233813,24613.08,Marketing services
Department for Education,DEPARTMENT FOR EDUCATION,04/04/2016,Professional Services Consultancy and Contingent Labour,Information Technology Group,6 POINT 6 LIMITED,4000234050,52800.00,Costs related to temporary workers
Department for Education,DEPARTMENT FOR EDUCATION,01/04/2016,Personnel Related,Human Resources Group,CIVIL SERVICE RESOURCING,4000233825,79000.00,"Personnel costs including staff recruitment, staff restaurant subsidies, family care expenses"
Department for Education,DEPARTMENT FOR EDUCATION,01/04/2016,Grants,Children's Services Special Educational Needs Group,THE FAMILY FUND TRUST,4000233830,1917000.00,Grants to educational establishments or not for profit organisations including other businesses
Department for Education,DEPARTMENT FOR EDUCATION,01/04/2016,Grants,Adoption and Children in Care Division,THE SHARE FOUNDATION 3RD PARTY TRUST,4000233839,56000.00,Grants to educational establishments or not for profit organisations including other businesses
Department for Education,NATIONAL COLLEGE FOR TEACHING AND LEADERSHIP AGENCY,04/04/2016,Grants,Operations Directorate,SOUTH WEST TEACHER TRAINING,4000233866,26730.00,Grants to educational establishments or not for profit organisations including other businesses
Department for Education,NATIONAL COLLEGE FOR TEACHING AND LEADERSHIP AGENCY,04/04/2016,Grants,Operations Directorate,MANCHESTER METROPOLITAN UNIVERSITY,4000233867,546840.00,Grants to educational establishments or not for profit organisations including other businesses
Department for Education,NATIONAL COLLEGE FOR TEACHING AND LEADERSHIP AGENCY,04/04/2016,Grants,Operations Directorate,MANCHESTER METROPOLITAN UNIVERSITY,4000233867,16500.00,Grants to educational establishments or not for profit organisations including other businesses
Department for Education,NATIONAL COLLEGE FOR TEACHING AND LEADERSHIP AGENCY,04/04/2016,Grants,Delivery Directorate,MANCHESTER METROPOLITAN UNIVERSITY,4000233867,23940.00,Grants to educational establishments or not for profit organisations including other businesses
Department for Education,NATIONAL COLLEGE FOR TEACHING AND LEADERSHIP AGENCY,04/04/2016,Grants,Operations Directorate,LONDON DIOCESAN BOARD FOR SCHOOLS,4000233868,33750.00,Grants to educational establishments or not for profit organisations including other businesses
Department for Education,NATIONAL COLLEGE FOR TEACHING AND LEADERSHIP AGENCY,04/04/2016,Grants,Operations Directorate,UNIVERSITY OF HUDDERSFIELD,4000233870,69930.00,Grants to educational establishments or not for profit organisations including other businesses
Department for Education,NATIONAL COLLEGE FOR TEACHING AND LEADERSHIP AGENCY,04/04/2016,Grants,Operations Directorate,UNIVERSITY OF HUDDERSFIELD,4000233870,14740.00,Grants to educational establishments or not for profit organisations including other businesses
Department for Education,NATIONAL COLLEGE FOR TEACHING AND LEADERSHIP AGENCY,04/04/2016,Grants,Delivery Directorate,UNIVERSITY OF HUDDERSFIELD,4000233870,16920.00,Grants to educational establishments or not for profit organisations including other businesses
Department for Education,NATIONAL COLLEGE FOR TEACHING AND LEADERSHIP AGENCY,04/04/2016,Grants,Operations Directorate,SOUTHEND HIGH SCHOOL FOR GIRLS,4000233871,29160.00,Grants to educational establishments or not for profit organisations including other businesses
Department for Education,NATIONAL COLLEGE FOR TEACHING AND LEADERSHIP AGENCY,04/04/2016,Grants,Operations Directorate,UNIVERSITY OF BIRMINGHAM,4000233872,284130.00,Grants to educational establishments or not for profit organisations including other businesses
Department for Education,NATIONAL COLLEGE FOR TEACHING AND LEADERSHIP AGENCY,04/04/2016,Grants,Operations Directorate,UNIVERSITY OF BIRMINGHAM,4000233872,18420.00,Grants to educational establishments or not for profit organisations including other businesses
Department for Education,DEPARTMENT FOR EDUCATION,04/04/2016,Professional Services Other,Strategic Analysis and Research Group,SHEFFIELD HALLAM UNIVERSITY,4000233876,16769.00,Research and evaluation activities
Department for Education,NATIONAL COLLEGE FOR TEACHING AND LEADERSHIP AGENCY,04/04/2016,Grants,Operations Directorate,SHEFFIELD HALLAM UNIVERSITY,4000233876,359820.00,Grants to educational establishments or not for profit organisations including other businesses
Department for Education,NATIONAL COLLEGE FOR TEACHING AND LEADERSHIP AGENCY,04/04/2016,Grants,Operations Directorate,SHEFFIELD HALLAM UNIVERSITY,4000233876,10227.80,Grants to educational establishments or not for profit organisations including other businesses
Department for Education,NATIONAL COLLEGE FOR TEACHING AND LEADERSHIP AGENCY,04/04/2016,Grants,Delivery Directorate,SHEFFIELD HALLAM UNIVERSITY,4000233876,20880.00,Grants to educational establishments or not for profit organisations including other businesses
Department for Education,NATIONAL COLLEGE FOR TEACHING AND LEADERSHIP AGENCY,04/04/2016,Grants,Operations Directorate,UNIVERSITY OF BRIGHTON,4000233878,358.90,Grants to educational establishments or not for profit organisations including other businesses
Department for Education,NATIONAL COLLEGE FOR TEACHING AND LEADERSHIP AGENCY,04/04/2016,Grants,Operations Directorate,UNIVERSITY OF BRIGHTON,4000233878,231660.00,Grants to educational establishments or not for profit organisations including other businesses
Department for Education,NATIONAL COLLEGE FOR TEACHING AND LEADERSHIP AGENCY,04/04/2016,Grants,Operations Directorate,UNIVERSITY OF BRIGHTON,4000233878,3630.00,Grants to educational establishments or not for profit organisations including other businesses
Department for Education,NATIONAL COLLEGE FOR TEACHING AND LEADERSHIP AGENCY,04/04/2016,Grants,Delivery Directorate,UNIVERSITY OF BRIGHTON,4000233878,18900.00,Grants to educational establishments or not for profit organisations including other businesses
Department for Education,DEPARTMENT FOR EDUCATION,04/04/2016,Professional Services Other,Strategic Analysis and Research Group,NATIONAL FOUNDATION FOR EDUCATIONAL RESEARCH,4000233880,40515.00,Research and evaluation activities
Department for Education,NATIONAL COLLEGE FOR TEACHING AND LEADERSHIP AGENCY,04/04/2016,Grants,Operations Directorate,THE OAKS SCITT,4000233882,72180.00,Grants to educational establishments or not for profit organisations including other businesses
Department for Education,NATIONAL COLLEGE FOR TEACHING AND LEADERSHIP AGENCY,04/04/2016,Grants,Operations Directorate,KING EDWARDS CONSORTIUM,4000233886,26280.00,Grants to educational establishments or not for profit organisations including other businesses
Department for Education,NATIONAL COLLEGE FOR TEACHING AND LEADERSHIP AGENCY,04/04/2016,Grants,Operations Directorate,HAVERING BEACON PARTNERSHIP,4000233889,26640.00,Grants to educational establishments or not for profit organisations including other businesses
Department for Education,NATIONAL COLLEGE FOR TEACHING AND LEADERSHIP AGENCY,04/04/2016,Grants,Operations Directorate,OXFORD BROOKES UNIVERSITY,4000233893,46800.00,Grants to educational establishments or not for profit organisations including other businesses
Department for Education,NATIONAL COLLEGE FOR TEACHING AND LEADERSHIP AGENCY,04/04/2016,Grants,Operations Directorate,OXFORD BROOKES UNIVERSITY,4000233893,2241.80,Grants to educational establishments or not for profit organisations including other businesses
Department for Education,NATIONAL COLLEGE FOR TEACHING AND LEADERSHIP AGENCY,04/04/2016,Grants,Delivery Directorate,OXFORD BROOKES UNIVERSITY,4000233893,6720.00,Grants to educational establishments or not for profit organisations including other businesses
Department for Education,NATIONAL COLLEGE FOR TEACHING AND LEADERSHIP AGENCY,04/04/2016,Grants,Operations Directorate,THE MORLEY ACADEMY,4000233895,64530.00,Grants to educational establishments or not for profit organisations including other businesses
Department for Education,NATIONAL COLLEGE FOR TEACHING AND LEADERSHIP AGENCY,04/04/2016,Grants,Operations Directorate,CHEADLE HULME HIGH SCHOOL,4000233898,26370.00,Grants to educational establishments or not for profit organisations including other businesses
Department for Education,NATIONAL COLLEGE FOR TEACHING AND LEADERSHIP AGENCY,04/04/2016,Grants,Operations Directorate,UNIVERSITY OF NOTTINGHAM,4000233899,272880.00,Grants to educational establishments or not for profit organisations including other businesses
Department for Education,NATIONAL COLLEGE FOR TEACHING AND LEADERSHIP AGENCY,04/04/2016,Grants,Operations Directorate,KINGSTON UNIVERSITY,4000233902,119430.00,Grants to educational establishments or not for profit organisations including other businesses
Department for Education,NATIONAL COLLEGE FOR TEACHING AND LEADERSHIP AGENCY,04/04/2016,Grants,Delivery Directorate,KINGSTON UNIVERSITY,4000233902,23940.00,Grants to educational establishments or not for profit organisations including other businesses
Department for Education,NATIONAL COLLEGE FOR TEACHING AND LEADERSHIP AGENCY,04/04/2016,Grants,Operations Directorate,ARK SCHOOLS,4000233908,26190.00,Grants to educational establishments or not for profit organisations including other businesses
Department for Education,NATIONAL COLLEGE FOR TEACHING AND LEADERSHIP AGENCY,04/04/2016,Grants,Operations Directorate,GRAND UNION TRAINING PARTNERSHIP,4000233909,41130.00,Grants to educational establishments or not for profit organisations including other businesses
Department for Education,NATIONAL COLLEGE FOR TEACHING AND LEADERSHIP AGENCY,04/04/2016,Grants,Operations Directorate,GRAND UNION TRAINING PARTNERSHIP,4000233909,5500.00,Grants to educational establishments or not for profit organisations including other businesses
Department for Education,NATIONAL COLLEGE FOR TEACHING AND LEADERSHIP AGENCY,04/04/2016,Grants,Operations Directorate,GOLDSMITH COLLEGE,4000233910,161910.00,Grants to educational establishments or not for profit organisations including other businesses
Department for Education,NATIONAL COLLEGE FOR TEACHING AND LEADERSHIP AGENCY,04/04/2016,Grants,Operations Directorate,BRUNEL UNIVERSITY,4000233914,123840.00,Grants to educational establishments or not for profit organisations including other businesses
Department for Education,NATIONAL COLLEGE FOR TEACHING AND LEADERSHIP AGENCY,04/04/2016,Grants,Operations Directorate,BRUNEL UNIVERSITY,4000233914,13035.00,Grants to educational establishments or not for profit organisations including other businesses
Department for Education,NATIONAL COLLEGE FOR TEACHING AND LEADERSHIP AGENCY,04/04/2016,Grants,Operations Directorate,ST MARYS UNIVERSITY COLLEGE,4000233916,215280.00,Grants to educational establishments or not for profit organisations including other businesses
Department for Education,NATIONAL COLLEGE FOR TEACHING AND LEADERSHIP AGENCY,04/04/2016,Grants,Operations Directorate,ST MARYS UNIVERSITY COLLEGE,4000233916,69500.00,Grants to educational establishments or not for profit organisations including other businesses
Department for Education,NATIONAL COLLEGE FOR TEACHING AND LEADERSHIP AGENCY,04/04/2016,Grants,Operations Directorate,UNIVERSITY OF NORTHAMPTON,4000233917,25920.00,Grants to educational establishments or not for profit organisations including other businesses
Department for Education,NATIONAL COLLEGE FOR TEACHING AND LEADERSHIP AGENCY,04/04/2016,Grants,Delivery Directorate,UNIVERSITY OF NORTHAMPTON,4000233917,21540.00,Grants to educational establishments or not for profit organisations including other businesses
Department for Education,NATIONAL COLLEGE FOR TEACHING AND LEADERSHIP AGENCY,04/04/2016,Grants,Operations Directorate,DURHAM SECONDARY APPLIED SCITT,4000233930,56700.00,Grants to educational establishments or not for profit organisations including other businesses
Department for Education,NATIONAL COLLEGE FOR TEACHING AND LEADERSHIP AGENCY,04/04/2016,Grants,Operations Directorate,UNIVERSITY OF CHICHESTER,4000233936,112410.00,Grants to educational establishments or not for profit organisations including other businesses
Department for Education,NATIONAL COLLEGE FOR TEACHING AND LEADERSHIP AGENCY,04/04/2016,Grants,Delivery Directorate,UNIVERSITY OF CHICHESTER,4000233936,11340.00,Grants to educational establishments or not for profit organisations including other businesses
Department for Education,NATIONAL COLLEGE FOR TEACHING AND LEADERSHIP AGENCY,04/04/2016,Grants,Operations Directorate,GLOUCESTERSHIRE ITE PARTNERSHIP,4000233939,34470.00,Grants to educational establishments or not for profit organisations including other businesses
Department for Education,NATIONAL COLLEGE FOR TEACHING AND LEADERSHIP AGENCY,04/04/2016,Grants,Operations Directorate,EAST LINCOLNSHIRE DRB,4000233941,33300.00,Grants to educational establishments or not for profit organisations including other businesses
Department for Education,NATIONAL COLLEGE FOR TEACHING AND LEADERSHIP AGENCY,04/04/2016,Grants,Operations Directorate,GEORGE SPENCER TRAINING SCHOOL,4000233942,26370.00,Grants to educational establishments or not for profit organisations including other businesses
Department for Education,NATIONAL COLLEGE FOR TEACHING AND LEADERSHIP AGENCY,04/04/2016,Grants,Operations Directorate,UNIVERSITY OF PLYMOUTH,4000233945,81720.00,Grants to educational establishments or not for profit organisations including other businesses
Department for Education,NATIONAL COLLEGE FOR TEACHING AND LEADERSHIP AGENCY,04/04/2016,Grants,Delivery Directorate,UNIVERSITY OF PLYMOUTH,4000233945,21870.00,Grants to educational establishments or not for profit organisations including other businesses
Department for Education,NATIONAL COLLEGE FOR TEACHING AND LEADERSHIP AGENCY,04/04/2016,Grants,Operations Directorate,UNIVERSITY OF SUSSEX,4000233946,312120.00,Grants to educational establishments or not for profit organisations including other businesses
Department for Education,NATIONAL COLLEGE FOR TEACHING AND LEADERSHIP AGENCY,04/04/2016,Grants,Operations Directorate,UNIVERSITY OF SUSSEX,4000233946,127125.00,Grants to educational establishments or not for profit organisations including other businesses
Department for Education,NATIONAL COLLEGE FOR TEACHING AND LEADERSHIP AGENCY,04/04/2016,Grants,Delivery Directorate,UNIVERSITY OF SUSSEX,4000233946,15570.00,Grants to educational establishments or not for profit organisations including other businesses
Department for Education,NATIONAL COLLEGE FOR TEACHING AND LEADERSHIP AGENCY,04/04/2016,Grants,Operations Directorate,KINGS COLLEGE GUILDFORD,4000233948,317160.00,Grants to educational establishments or not for profit organisations including other businesses
Department for Education,NATIONAL COLLEGE FOR TEACHING AND LEADERSHIP AGENCY,04/04/2016,Grants,Operations Directorate,UNIVERSITY OF EAST ANGLIA,4000233950,212940.00,Grants to educational establishments or not for profit organisations including other businesses
Department for Education,DEPARTMENT FOR EDUCATION,14/04/2016,Professional Services Consultancy and Contingent Labour,Information Technology Group,CADENCE PARTNERSHIP LLP,4000235051,49162.44,Costs related to temporary workers
Department for Education,DEPARTMENT FOR EDUCATION,11/04/2016,Professional Services Consultancy and Contingent Labour,Information Technology Group,CAPITA BUSINESS SERVICES LTD,4000234763,9797.47,Costs related to temporary workers
Department for Education,NATIONAL COLLEGE FOR TEACHING AND LEADERSHIP AGENCY,04/04/2016,Grants,Operations Directorate,NEWCASTLE COLLEGE GROUP,4000233959,47300.00,Grants to educational establishments or not for profit organisations including other businesses
Department for Education,NATIONAL COLLEGE FOR TEACHING AND LEADERSHIP AGENCY,04/04/2016,Grants,Operations Directorate,UNIVERSITY OF BOLTON,4000233960,139630.00,Grants to educational establishments or not for profit organisations including other businesses
Department for Education,NATIONAL COLLEGE FOR TEACHING AND LEADERSHIP AGENCY,04/04/2016,Grants,Operations Directorate,UNIVERSITY OF CHESTER,4000233963,213120.00,Grants to educational establishments or not for profit organisations including other businesses
Department for Education,NATIONAL COLLEGE FOR TEACHING AND LEADERSHIP AGENCY,04/04/2016,Grants,Delivery Directorate,UNIVERSITY OF CHESTER,4000233963,3780.00,Grants to educational establishments or not for profit organisations including other businesses
Department for Education,NATIONAL COLLEGE FOR TEACHING AND LEADERSHIP AGENCY,04/04/2016,Grants,Operations Directorate,UNIVERSITY OF CUMBRIA,4000233966,183.60,Grants to educational establishments or not for profit organisations including other businesses
Department for Education,NATIONAL COLLEGE FOR TEACHING AND LEADERSHIP AGENCY,04/04/2016,Grants,Operations Directorate,UNIVERSITY OF CUMBRIA,4000233966,358110.00,Grants to educational establishments or not for profit organisations including other businesses
Department for Education,NATIONAL COLLEGE FOR TEACHING AND LEADERSHIP AGENCY,04/04/2016,Grants,Operations Directorate,UNIVERSITY OF CUMBRIA,4000233966,32125.00,Grants to educational establishments or not for profit organisations including other businesses
Department for Education,NATIONAL COLLEGE FOR TEACHING AND LEADERSHIP AGENCY,04/04/2016,Grants,Operations Directorate,E QUALITAS PROFESSIONAL SERVICES LTD,4000233969,26550.00,Grants to educational establishments or not for profit organisations including other businesses
Department for Education,NATIONAL COLLEGE FOR TEACHING AND LEADERSHIP AGENCY,04/04/2016,Grants,Delivery Directorate,E QUALITAS PROFESSIONAL SERVICES LTD,4000233969,72540.00,Grants to educational establishments or not for profit organisations including other businesses
Department for Education,NATIONAL COLLEGE FOR TEACHING AND LEADERSHIP AGENCY,04/04/2016,Grants,Operations Directorate,EDUCATION MANAGEMENT DIRECT LTD,4000233970,25380.00,Grants to educational establishments or not for profit organisations including other businesses
Department for Education,NATIONAL COLLEGE FOR TEACHING AND LEADERSHIP AGENCY,04/04/2016,Grants,Operations Directorate,CHILTERN TRAINING GROUP,4000233973,35910.00,Grants to educational establishments or not for profit organisations including other businesses
Department for Education,NATIONAL COLLEGE FOR TEACHING AND LEADERSHIP AGENCY,04/04/2016,Grants,Operations Directorate,UNIVERSITY OF DERBY,4000233975,2295.00,Grants to educational establishments or not for profit organisations including other businesses
Department for Education,NATIONAL COLLEGE FOR TEACHING AND LEADERSHIP AGENCY,04/04/2016,Grants,Operations Directorate,UNIVERSITY OF DERBY,4000233975,112600.00,Grants to educational establishments or not for profit organisations including other businesses
Department for Education,NATIONAL COLLEGE FOR TEACHING AND LEADERSHIP AGENCY,04/04/2016,Grants,Operations Directorate,UNIVERSITY OF DERBY,4000233975,5018.20,Grants to educational establishments or not for profit organisations including other businesses
Department for Education,NATIONAL COLLEGE FOR TEACHING AND LEADERSHIP AGENCY,04/04/2016,Grants,Delivery Directorate,UNIVERSITY OF DERBY,4000233975,19890.00,Grants to educational establishments or not for profit organisations including other businesses
Department for Education,NATIONAL COLLEGE FOR TEACHING AND LEADERSHIP AGENCY,04/04/2016,Grants,Operations Directorate,STAFFORDSHIRE UNIVERSITY,4000233976,41220.00,Grants to educational establishments or not for profit organisations including other businesses
Department for Education,NATIONAL COLLEGE FOR TEACHING AND LEADERSHIP AGENCY,04/04/2016,Grants,Operations Directorate,STAFFORDSHIRE UNIVERSITY,4000233976,11550.00,Grants to educational establishments or not for profit organisations including other businesses
Department for Education,NATIONAL COLLEGE FOR TEACHING AND LEADERSHIP AGENCY,04/04/2016,Grants,Delivery Directorate,STAFFORDSHIRE UNIVERSITY,4000233976,8820.00,Grants to educational establishments or not for profit organisations including other businesses
Department for Education,NATIONAL COLLEGE FOR TEACHING AND LEADERSHIP AGENCY,04/04/2016,Grants,Operations Directorate,LEEDS BECKETT UNIVERSITY,4000233977,4681.80,Grants to educational establishments or not for profit organisations including other businesses
Department for Education,NATIONAL COLLEGE FOR TEACHING AND LEADERSHIP AGENCY,04/04/2016,Grants,Operations Directorate,LEEDS BECKETT UNIVERSITY,4000233977,57420.00,Grants to educational establishments or not for profit organisations including other businesses
Department for Education,NATIONAL COLLEGE FOR TEACHING AND LEADERSHIP AGENCY,04/04/2016,Grants,Delivery Directorate,LEEDS BECKETT UNIVERSITY,4000233977,6210.00,Grants to educational establishments or not for profit organisations including other businesses
Department for Education,DEPARTMENT FOR EDUCATION,04/04/2016,Programme costs,Systems and Accountability Group,RM EDUCATION PLC,4000233985,39969.17,Funding to deliver policies (excluding consultancy) paid to third parties via a service delivery contract
Department for Education,DEPARTMENT FOR EDUCATION,04/04/2016,ICT,Information Technology Group,SOFTCAT LTD,4000233986,39526.70,ICT Services
Department for Education,NATIONAL COLLEGE FOR TEACHING AND LEADERSHIP AGENCY,04/04/2016,Grants,Operations Directorate,MINSTHORPE COMMUNITY COLLEGE,4000233991,31500.00,Grants to educational establishments or not for profit organisations including other businesses
Department for Education,NATIONAL COLLEGE FOR TEACHING AND LEADERSHIP AGENCY,04/04/2016,Grants,Operations Directorate,CARMEL TEACHER TRAINING PARTNERSHIP,4000233996,73530.00,Grants to educational establishments or not for profit organisations including other businesses
Department for Education,NATIONAL COLLEGE FOR TEACHING AND LEADERSHIP AGENCY,04/04/2016,Grants,Operations Directorate,THE UNIVERSITY OF READING,4000233997,205830.00,Grants to educational establishments or not for profit organisations including other businesses
Department for Education,NATIONAL COLLEGE FOR TEACHING AND LEADERSHIP AGENCY,04/04/2016,Grants,Operations Directorate,THE UNIVERSITY OF READING,4000233997,37605.00,Grants to educational establishments or not for profit organisations including other businesses
Department for Education,NATIONAL COLLEGE FOR TEACHING AND LEADERSHIP AGENCY,04/04/2016,Grants,Delivery Directorate,THE UNIVERSITY OF READING,4000233997,25110.00,Grants to educational establishments or not for profit organisations including other businesses
Department for Education,NATIONAL COLLEGE FOR TEACHING AND LEADERSHIP AGENCY,04/04/2016,Grants,Operations Directorate,UNIVERSITY OF SOUTHAMPTON,4000234000,195300.00,Grants to educational establishments or not for profit organisations including other businesses
Department for Education,NATIONAL COLLEGE FOR TEACHING AND LEADERSHIP AGENCY,04/04/2016,Grants,Operations Directorate,UNIVERSITY OF SOUTHAMPTON,4000234000,12230.00,Grants to educational establishments or not for profit organisations including other businesses
Department for Education,NATIONAL COLLEGE FOR TEACHING AND LEADERSHIP AGENCY,04/04/2016,Grants,Operations Directorate,UNIVERSITY OF SOUTHAMPTON,4000234000,6980.60,Grants to educational establishments or not for profit organisations including other businesses
Department for Education,NATIONAL COLLEGE FOR TEACHING AND LEADERSHIP AGENCY,04/04/2016,Grants,Operations Directorate,UNIVERSITY OF ROEHAMPTON,4000234003,177300.00,Grants to educational establishments or not for profit organisations including other businesses
Department for Education,NATIONAL COLLEGE FOR TEACHING AND LEADERSHIP AGENCY,04/04/2016,Grants,Delivery Directorate,INSPIRING LEADERS SCHOLARSHIPS,4000234004,30628.00,Grants to educational establishments or not for profit organisations including other businesses
Department for Education,NATIONAL COLLEGE FOR TEACHING AND LEADERSHIP AGENCY,04/04/2016,Programme costs,School Business Management and Efficiency,SERCO LTD,4000234009,40440.00,Funding to deliver policies (excluding consultancy) paid to third parties via a service delivery contract
Department for Education,NATIONAL COLLEGE FOR TEACHING AND LEADERSHIP AGENCY,04/04/2016,Grants,Operations Directorate,UNIVERSITY OF GREENWICH,4000234013,194580.00,Grants to educational establishments or not for profit organisations including other businesses
Department for Education,NATIONAL COLLEGE FOR TEACHING AND LEADERSHIP AGENCY,04/04/2016,Grants,Operations Directorate,UNIVERSITY OF GREENWICH,4000234013,17160.00,Grants to educational establishments or not for profit organisations including other businesses
Department for Education,NATIONAL COLLEGE FOR TEACHING AND LEADERSHIP AGENCY,04/04/2016,Grants,Delivery Directorate,UNIVERSITY OF GREENWICH,4000234013,11320.00,Grants to educational establishments or not for profit organisations including other businesses
Department for Education,NATIONAL COLLEGE FOR TEACHING AND LEADERSHIP AGENCY,04/04/2016,Grants,Operations Directorate,ESSEX COUNTY COUNCIL,4000234017,47520.00,Grants to educational establishments or not for profit organisations including other businesses
Department for Education,NATIONAL COLLEGE FOR TEACHING AND LEADERSHIP AGENCY,04/04/2016,Grants,Operations Directorate,CORNWALL SCITT,4000234019,57330.00,Grants to educational establishments or not for profit organisations including other businesses
Department for Education,NATIONAL COLLEGE FOR TEACHING AND LEADERSHIP AGENCY,04/04/2016,Grants,Operations Directorate,UNIVERSITY OF WINCHESTER,4000234020,52200.00,Grants to educational establishments or not for profit organisations including other businesses
Department for Education,NATIONAL COLLEGE FOR TEACHING AND LEADERSHIP AGENCY,04/04/2016,Grants,Delivery Directorate,UNIVERSITY OF WINCHESTER,4000234020,25380.00,Grants to educational establishments or not for profit organisations including other businesses
Department for Education,DEPARTMENT FOR EDUCATION,04/04/2016,Professional Services Consultancy and Contingent Labour,Adoption and Children in Care Division,METHODS CONSULTING LTD,4000234021,77143.20,"Advisory services including fees, travel and expenses"
Department for Education,DEPARTMENT FOR EDUCATION,11/04/2016,Professional Services Consultancy and Contingent Labour,Information Technology Group,CAPITA BUSINESS SERVICES LTD,4000234763,1996.85,Costs related to temporary workers
Department for Education,NATIONAL COLLEGE FOR TEACHING AND LEADERSHIP AGENCY,04/04/2016,Grants,Operations Directorate,BROMLEY SCHOOLS COLLEGIATE,4000234023,36450.00,Grants to educational establishments or not for profit organisations including other businesses
Department for Education,NATIONAL COLLEGE FOR TEACHING AND LEADERSHIP AGENCY,04/04/2016,Grants,Operations Directorate,SHOTTON HALL SCITT,4000234026,68670.00,Grants to educational establishments or not for profit organisations including other businesses
Department for Education,DEPARTMENT FOR EDUCATION,04/04/2016,ICT,Information Technology Group,LOCKHEED MARTIN,4000234027,35490.82,ICT Services
Department for Education,NATIONAL COLLEGE FOR TEACHING AND LEADERSHIP AGENCY,04/04/2016,Grants,Operations Directorate,BOURNEMOUTH POOLE & DORSET EAST SECONDARY,4000234041,32310.00,Grants to educational establishments or not for profit organisations including other businesses
Department for Education,NATIONAL COLLEGE FOR TEACHING AND LEADERSHIP AGENCY,04/04/2016,Grants,Operations Directorate,HARRIS CITY ACADEMY,4000234042,27630.00,Grants to educational establishments or not for profit organisations including other businesses
Department for Education,NATIONAL COLLEGE FOR TEACHING AND LEADERSHIP AGENCY,04/04/2016,Grants,Operations Directorate,UNIVERSITY OF HULL,4000234046,3213.00,Grants to educational establishments or not for profit organisations including other businesses
Department for Education,NATIONAL COLLEGE FOR TEACHING AND LEADERSHIP AGENCY,04/04/2016,Grants,Operations Directorate,UNIVERSITY OF HULL,4000234046,192150.00,Grants to educational establishments or not for profit organisations including other businesses
Department for Education,NATIONAL COLLEGE FOR TEACHING AND LEADERSHIP AGENCY,04/04/2016,Grants,Operations Directorate,UNIVERSITY OF HULL,4000234046,32235.00,Grants to educational establishments or not for profit organisations including other businesses
Department for Education,NATIONAL COLLEGE FOR TEACHING AND LEADERSHIP AGENCY,04/04/2016,Grants,Delivery Directorate,UNIVERSITY OF HULL,4000234046,6300.00,Grants to educational establishments or not for profit organisations including other businesses
Department for Education,NATIONAL COLLEGE FOR TEACHING AND LEADERSHIP AGENCY,04/04/2016,Grants,Operations Directorate,SUTTON SCITT,4000234047,45990.00,Grants to educational establishments or not for profit organisations including other businesses
Department for Education,DEPARTMENT FOR EDUCATION,04/04/2016,ICT,Information Technology Group,6 POINT 6 LTD,4000234049,114975.60,ICT Services
Department for Education,DEPARTMENT FOR EDUCATION,26/04/2016,Professional Services Consultancy and Contingent Labour,Information Technology Group,CAPITA BUSINESS SERVICES LTD,4000235942,12246.84,Costs related to temporary workers
Department for Education,NATIONAL COLLEGE FOR TEACHING AND LEADERSHIP AGENCY,04/04/2016,Grants,Operations Directorate,UNIVERSITY OF BRISTOL,4000234064,243720.00,Grants to educational establishments or not for profit organisations including other businesses
Department for Education,NATIONAL COLLEGE FOR TEACHING AND LEADERSHIP AGENCY,04/04/2016,Grants,Operations Directorate,LONDON METROPOLITAN UNIVERSITY,4000234066,132210.00,Grants to educational establishments or not for profit organisations including other businesses
Department for Education,NATIONAL COLLEGE FOR TEACHING AND LEADERSHIP AGENCY,04/04/2016,Grants,Delivery Directorate,LONDON METROPOLITAN UNIVERSITY,4000234066,5600.00,Grants to educational establishments or not for profit organisations including other businesses
Department for Education,NATIONAL COLLEGE FOR TEACHING AND LEADERSHIP AGENCY,04/04/2016,Grants,Operations Directorate,NOTTINGHAM TRENT UNIVERSITY,4000234068,129600.00,Grants to educational establishments or not for profit organisations including other businesses
Department for Education,NATIONAL COLLEGE FOR TEACHING AND LEADERSHIP AGENCY,04/04/2016,Grants,Operations Directorate,NOTTINGHAM TRENT UNIVERSITY,4000234068,4180.00,Grants to educational establishments or not for profit organisations including other businesses
Department for Education,NATIONAL COLLEGE FOR TEACHING AND LEADERSHIP AGENCY,04/04/2016,Grants,Delivery Directorate,NOTTINGHAM TRENT UNIVERSITY,4000234068,7560.00,Grants to educational establishments or not for profit organisations including other businesses
Department for Education,NATIONAL COLLEGE FOR TEACHING AND LEADERSHIP AGENCY,04/04/2016,Grants,Operations Directorate,LIVERPOOL JOHN MOORES UNIVERSITY,4000234078,157590.00,Grants to educational establishments or not for profit organisations including other businesses
Department for Education,NATIONAL COLLEGE FOR TEACHING AND LEADERSHIP AGENCY,04/04/2016,Grants,Operations Directorate,BIRMINGHAM CITY UNIVERSITY,4000234079,158220.00,Grants to educational establishments or not for profit organisations including other businesses
Department for Education,NATIONAL COLLEGE FOR TEACHING AND LEADERSHIP AGENCY,04/04/2016,Grants,Operations Directorate,BIRMINGHAM CITY UNIVERSITY,4000234079,32670.00,Grants to educational establishments or not for profit organisations including other businesses
Department for Education,NATIONAL COLLEGE FOR TEACHING AND LEADERSHIP AGENCY,04/04/2016,Grants,Operations Directorate,UNIVERSITY OF WORCESTER,4000234085,170280.00,Grants to educational establishments or not for profit organisations including other businesses
Department for Education,NATIONAL COLLEGE FOR TEACHING AND LEADERSHIP AGENCY,04/04/2016,Grants,Delivery Directorate,UNIVERSITY OF WORCESTER,4000234085,12280.00,Grants to educational establishments or not for profit organisations including other businesses
Department for Education,NATIONAL COLLEGE FOR TEACHING AND LEADERSHIP AGENCY,04/04/2016,Grants,Operations Directorate,UNIVERSITY OF HERTFORDSHIRE,4000234086,111420.00,Grants to educational establishments or not for profit organisations including other businesses
Department for Education,NATIONAL COLLEGE FOR TEACHING AND LEADERSHIP AGENCY,04/04/2016,Grants,Operations Directorate,UNIVERSITY OF NORTHUMBRIA,4000234088,88020.00,Grants to educational establishments or not for profit organisations including other businesses
Department for Education,NATIONAL COLLEGE FOR TEACHING AND LEADERSHIP AGENCY,04/04/2016,Grants,Delivery Directorate,UNIVERSITY OF NORTHUMBRIA,4000234088,18450.00,Grants to educational establishments or not for profit organisations including other businesses
Department for Education,NATIONAL COLLEGE FOR TEACHING AND LEADERSHIP AGENCY,04/04/2016,Grants,Operations Directorate,HIBERNIA COLLEGE UK,4000234092,62550.00,Grants to educational establishments or not for profit organisations including other businesses
Department for Education,NATIONAL COLLEGE FOR TEACHING AND LEADERSHIP AGENCY,04/04/2016,Grants,Operations Directorate,HIBERNIA COLLEGE UK,4000234092,565635.00,Grants to educational establishments or not for profit organisations including other businesses
Department for Education,NATIONAL COLLEGE FOR TEACHING AND LEADERSHIP AGENCY,04/04/2016,Grants,Operations Directorate,UCL INSTITUTE OF EDUCATION,4000234095,695160.00,Grants to educational establishments or not for profit organisations including other businesses
Department for Education,NATIONAL COLLEGE FOR TEACHING AND LEADERSHIP AGENCY,04/04/2016,Grants,Operations Directorate,UCL INSTITUTE OF EDUCATION,4000234095,50600.00,Grants to educational establishments or not for profit organisations including other businesses
Department for Education,NATIONAL COLLEGE FOR TEACHING AND LEADERSHIP AGENCY,04/04/2016,Grants,Delivery Directorate,UCL INSTITUTE OF EDUCATION,4000234095,17430.00,Grants to educational establishments or not for profit organisations including other businesses
Department for Education,DEPARTMENT FOR EDUCATION,04/04/2016,Programme costs,Systems and Accountability Group,RESEARCH MACHINES PLC,4000234099,547276.08,Funding to deliver policies (excluding consultancy) paid to third parties via a service delivery contract
Department for Education,NATIONAL COLLEGE FOR TEACHING AND LEADERSHIP AGENCY,04/04/2016,Grants,Operations Directorate,UNIVERSITY OF WARWICK,4000234103,200700.00,Grants to educational establishments or not for profit organisations including other businesses
Department for Education,NATIONAL COLLEGE FOR TEACHING AND LEADERSHIP AGENCY,04/04/2016,Grants,Operations Directorate,UNIVERSITY OF WARWICK,4000234103,14425.40,Grants to educational establishments or not for profit organisations including other businesses
Department for Education,NATIONAL COLLEGE FOR TEACHING AND LEADERSHIP AGENCY,04/04/2016,Grants,Delivery Directorate,UNIVERSITY OF WARWICK,4000234103,20400.00,Grants to educational establishments or not for profit organisations including other businesses
Department for Education,NATIONAL COLLEGE FOR TEACHING AND LEADERSHIP AGENCY,04/04/2016,Grants,Operations Directorate,UNIVERSITY OF BEDFORDSHIRE,4000234104,1709.10,Grants to educational establishments or not for profit organisations including other businesses
Department for Education,NATIONAL COLLEGE FOR TEACHING AND LEADERSHIP AGENCY,04/04/2016,Grants,Operations Directorate,UNIVERSITY OF BEDFORDSHIRE,4000234104,62730.00,Grants to educational establishments or not for profit organisations including other businesses
Department for Education,NATIONAL COLLEGE FOR TEACHING AND LEADERSHIP AGENCY,04/04/2016,Grants,Delivery Directorate,UNIVERSITY OF BEDFORDSHIRE,4000234104,36540.00,Grants to educational establishments or not for profit organisations including other businesses
Department for Education,NATIONAL COLLEGE FOR TEACHING AND LEADERSHIP AGENCY,04/04/2016,Grants,Operations Directorate,LOUGHBOROUGH UNIVERSITY ENTERPRISE LTD,4000234105,26550.00,Grants to educational establishments or not for profit organisations including other businesses
Department for Education,NATIONAL COLLEGE FOR TEACHING AND LEADERSHIP AGENCY,04/04/2016,Grants,Operations Directorate,UNIVERSITY OF EAST LONDON,4000234111,307800.00,Grants to educational establishments or not for profit organisations including other businesses
Department for Education,NATIONAL COLLEGE FOR TEACHING AND LEADERSHIP AGENCY,04/04/2016,Grants,Operations Directorate,UNIVERSITY OF EAST LONDON,4000234111,30310.00,Grants to educational establishments or not for profit organisations including other businesses
Department for Education,NATIONAL COLLEGE FOR TEACHING AND LEADERSHIP AGENCY,04/04/2016,Grants,Operations Directorate,UNIVERSITY OF OXFORD,4000234113,235080.00,Grants to educational establishments or not for profit organisations including other businesses
Department for Education,NATIONAL COLLEGE FOR TEACHING AND LEADERSHIP AGENCY,04/04/2016,Grants,Operations Directorate,YORK ST JOHN UNIVERSITY,4000234114,75600.00,Grants to educational establishments or not for profit organisations including other businesses
Department for Education,NATIONAL COLLEGE FOR TEACHING AND LEADERSHIP AGENCY,04/04/2016,Grants,Operations Directorate,PENINSULA TEACHER TRAINING CORNWALL SCITT,4000234115,25650.00,Grants to educational establishments or not for profit organisations including other businesses
Department for Education,NATIONAL COLLEGE FOR TEACHING AND LEADERSHIP AGENCY,04/04/2016,Grants,Operations Directorate,UNIVERSITY OF CAMBRIDGE,4000234120,281340.00,Grants to educational establishments or not for profit organisations including other businesses
Department for Education,NATIONAL COLLEGE FOR TEACHING AND LEADERSHIP AGENCY,04/04/2016,Grants,Operations Directorate,SUFFOLK COUNTY COUNCIL,4000234122,44280.00,Grants to educational establishments or not for profit organisations including other businesses
Department for Education,NATIONAL COLLEGE FOR TEACHING AND LEADERSHIP AGENCY,04/04/2016,Grants,Operations Directorate,PADDINGTON ACADEMY,4000234123,42660.00,Grants to educational establishments or not for profit organisations including other businesses
Department for Education,NATIONAL COLLEGE FOR TEACHING AND LEADERSHIP AGENCY,04/04/2016,Grants,Operations Directorate,THE UNIVERSITY OF MANCHESTER,4000234124,330030.00,Grants to educational establishments or not for profit organisations including other businesses
Department for Education,NATIONAL COLLEGE FOR TEACHING AND LEADERSHIP AGENCY,04/04/2016,Grants,Operations Directorate,NOTLEY HIGH SCHOOL & BRAINTREE SIXTH FORM,4000234127,29700.00,Grants to educational establishments or not for profit organisations including other businesses
Department for Education,NATIONAL COLLEGE FOR TEACHING AND LEADERSHIP AGENCY,04/04/2016,Grants,Operations Directorate,BRADFORD COLLEGE,4000234128,99540.00,Grants to educational establishments or not for profit organisations including other businesses
Department for Education,NATIONAL COLLEGE FOR TEACHING AND LEADERSHIP AGENCY,04/04/2016,Grants,Operations Directorate,BRADFORD COLLEGE,4000234128,90770.00,Grants to educational establishments or not for profit organisations including other businesses
Department for Education,NATIONAL COLLEGE FOR TEACHING AND LEADERSHIP AGENCY,04/04/2016,Grants,Operations Directorate,BRADFORD COLLEGE,4000234128,8910.00,Grants to educational establishments or not for profit organisations including other businesses
Department for Education,NATIONAL COLLEGE FOR TEACHING AND LEADERSHIP AGENCY,04/04/2016,Grants,Operations Directorate,LIVERPOOL HOPE UNIVERSITY,4000234129,1101.60,Grants to educational establishments or not for profit organisations including other businesses
Department for Education,NATIONAL COLLEGE FOR TEACHING AND LEADERSHIP AGENCY,04/04/2016,Grants,Operations Directorate,LIVERPOOL HOPE UNIVERSITY,4000234129,281250.00,Grants to educational establishments or not for profit organisations including other businesses
Department for Education,NATIONAL COLLEGE FOR TEACHING AND LEADERSHIP AGENCY,04/04/2016,Grants,Operations Directorate,UNIVERSITY OF GLOUCESTERSHIRE,4000234130,68040.00,Grants to educational establishments or not for profit organisations including other businesses
Department for Education,NATIONAL COLLEGE FOR TEACHING AND LEADERSHIP AGENCY,04/04/2016,Grants,Delivery Directorate,UNIVERSITY OF GLOUCESTERSHIRE,4000234130,28980.00,Grants to educational establishments or not for profit organisations including other businesses
Department for Education,NATIONAL COLLEGE FOR TEACHING AND LEADERSHIP AGENCY,04/04/2016,Grants,Operations Directorate,THE POLESWORTH SCHOOL,4000234133,33995.00,Grants to educational establishments or not for profit organisations including other businesses
Department for Education,DEPARTMENT FOR EDUCATION,04/04/2016,Professional Services Other,Ministerial and Public Communications Group,BMG RESEARCH,4000234136,30705.00,Research and evaluation activities
Department for Education,NATIONAL COLLEGE FOR TEACHING AND LEADERSHIP AGENCY,04/04/2016,Grants,Operations Directorate,UNIVERSITY OF LEICESTER,4000234142,176850.00,Grants to educational establishments or not for profit organisations including other businesses
Department for Education,NATIONAL COLLEGE FOR TEACHING AND LEADERSHIP AGENCY,04/04/2016,Grants,Operations Directorate,EDGE HILL UNIVERSITY,4000234144,552600.00,Grants to educational establishments or not for profit organisations including other businesses
Department for Education,NATIONAL COLLEGE FOR TEACHING AND LEADERSHIP AGENCY,04/04/2016,Grants,Operations Directorate,EDGE HILL UNIVERSITY,4000234144,12915.00,Grants to educational establishments or not for profit organisations including other businesses
Department for Education,NATIONAL COLLEGE FOR TEACHING AND LEADERSHIP AGENCY,04/04/2016,Grants,Operations Directorate,EDGE HILL UNIVERSITY,4000234144,38830.00,Grants to educational establishments or not for profit organisations including other businesses
Department for Education,NATIONAL COLLEGE FOR TEACHING AND LEADERSHIP AGENCY,04/04/2016,Grants,Delivery Directorate,EDGE HILL UNIVERSITY,4000234144,85680.00,Grants to educational establishments or not for profit organisations including other businesses
Department for Education,NATIONAL COLLEGE FOR TEACHING AND LEADERSHIP AGENCY,04/04/2016,Grants,Operations Directorate,UNIVERSITY OF EXETER,4000234146,322920.00,Grants to educational establishments or not for profit organisations including other businesses
Department for Education,NATIONAL COLLEGE FOR TEACHING AND LEADERSHIP AGENCY,04/04/2016,Grants,Operations Directorate,UNIVERSITY OF SHEFFIELD,4000234148,154440.00,Grants to educational establishments or not for profit organisations including other businesses
Department for Education,NATIONAL COLLEGE FOR TEACHING AND LEADERSHIP AGENCY,04/04/2016,Grants,Operations Directorate,NOTRE DAME HIGH SCHOOL,4000234150,33300.00,Grants to educational establishments or not for profit organisations including other businesses
Department for Education,NATIONAL COLLEGE FOR TEACHING AND LEADERSHIP AGENCY,04/04/2016,Grants,Operations Directorate,MIDDLESEX UNIVERSITY,4000234157,126540.00,Grants to educational establishments or not for profit organisations including other businesses
Department for Education,NATIONAL COLLEGE FOR TEACHING AND LEADERSHIP AGENCY,04/04/2016,Grants,Delivery Directorate,MIDDLESEX UNIVERSITY,4000234157,44070.00,Grants to educational establishments or not for profit organisations including other businesses
Department for Education,NATIONAL COLLEGE FOR TEACHING AND LEADERSHIP AGENCY,04/04/2016,Grants,Operations Directorate,NOTTINGHAMSHIRE TORCH SCITT,4000234161,23220.00,Grants to educational establishments or not for profit organisations including other businesses
Department for Education,NATIONAL COLLEGE FOR TEACHING AND LEADERSHIP AGENCY,04/04/2016,Grants,Operations Directorate,NOTTINGHAMSHIRE TORCH SCITT,4000234161,6515.00,Grants to educational establishments or not for profit organisations including other businesses
Department for Education,STANDARDS AND TESTING AGENCY,04/04/2016,Programme costs,Test Development Division,GWASG PIA CYF,4000234163,25012.00,Funding to deliver policies (excluding consultancy) paid to third parties via a service delivery contract
Department for Education,NATIONAL COLLEGE FOR TEACHING AND LEADERSHIP AGENCY,04/04/2016,Grants,Operations Directorate,LINCOLNSHIRE TEACHING SCHOOL ALLIANCE,4000234164,27540.00,Grants to educational establishments or not for profit organisations including other businesses
Department for Education,NATIONAL COLLEGE FOR TEACHING AND LEADERSHIP AGENCY,04/04/2016,Grants,Operations Directorate,LINCOLNSHIRE TEACHING SCHOOL ALLIANCE,4000234164,7410.00,Grants to educational establishments or not for profit organisations including other businesses
Department for Education,NATIONAL COLLEGE FOR TEACHING AND LEADERSHIP AGENCY,04/04/2016,Grants,Operations Directorate,DONCASTER MBC,4000234165,25290.00,Grants to educational establishments or not for profit organisations including other businesses
Department for Education,NATIONAL COLLEGE FOR TEACHING AND LEADERSHIP AGENCY,04/04/2016,Grants,Operations Directorate,LEEDS CITY COUNCIL,4000234166,32310.00,Grants to educational establishments or not for profit organisations including other businesses
Department for Education,NATIONAL COLLEGE FOR TEACHING AND LEADERSHIP AGENCY,04/04/2016,Grants,Operations Directorate,UNIVERSITY OF THE WEST OF ENGLAND,4000234170,157590.00,Grants to educational establishments or not for profit organisations including other businesses
Department for Education,NATIONAL COLLEGE FOR TEACHING AND LEADERSHIP AGENCY,04/04/2016,Grants,Delivery Directorate,UNIVERSITY OF THE WEST OF ENGLAND,4000234170,10080.00,Grants to educational establishments or not for profit organisations including other businesses
Department for Education,NATIONAL COLLEGE FOR TEACHING AND LEADERSHIP AGENCY,04/04/2016,Grants,Operations Directorate,UNIVERSITY OF PORTSMOUTH,4000234173,140040.00,Grants to educational establishments or not for profit organisations including other businesses
Department for Education,NATIONAL COLLEGE FOR TEACHING AND LEADERSHIP AGENCY,04/04/2016,Grants,Operations Directorate,UNIVERSITY OF PORTSMOUTH,4000234173,1430.00,Grants to educational establishments or not for profit organisations including other businesses
Department for Education,NATIONAL COLLEGE FOR TEACHING AND LEADERSHIP AGENCY,04/04/2016,Grants,Delivery Directorate,UNIVERSITY OF PORTSMOUTH,4000234173,10080.00,Grants to educational establishments or not for profit organisations including other businesses
Department for Education,NATIONAL COLLEGE FOR TEACHING AND LEADERSHIP AGENCY,04/04/2016,Grants,Operations Directorate,PILGRIM SCITT,4000234176,26190.00,Grants to educational establishments or not for profit organisations including other businesses
Department for Education,NATIONAL COLLEGE FOR TEACHING AND LEADERSHIP AGENCY,04/04/2016,Grants,Operations Directorate,NORTH BEDS SCITT CONSORTIUM,4000234179,47340.00,Grants to educational establishments or not for profit organisations including other businesses
Department for Education,DEPARTMENT FOR EDUCATION,04/04/2016,Professional Services Other,Strategic Analysis and Research Group,L G FUTURES LTD,4000234181,22000.00,Research and evaluation activities
Department for Education,NATIONAL COLLEGE FOR TEACHING AND LEADERSHIP AGENCY,04/04/2016,Grants,Operations Directorate,CANTERBURY CHRIST CHURCH UNIVERSITY,4000234190,306810.00,Grants to educational establishments or not for profit organisations including other businesses
Department for Education,NATIONAL COLLEGE FOR TEACHING AND LEADERSHIP AGENCY,04/04/2016,Grants,Operations Directorate,CANTERBURY CHRIST CHURCH UNIVERSITY,4000234190,71540.00,Grants to educational establishments or not for profit organisations including other businesses
Department for Education,NATIONAL COLLEGE FOR TEACHING AND LEADERSHIP AGENCY,04/04/2016,Grants,Operations Directorate,CANTERBURY CHRIST CHURCH UNIVERSITY,4000234190,30030.00,Grants to educational establishments or not for profit organisations including other businesses
Department for Education,NATIONAL COLLEGE FOR TEACHING AND LEADERSHIP AGENCY,04/04/2016,Grants,Delivery Directorate,CANTERBURY CHRIST CHURCH UNIVERSITY,4000234190,17100.00,Grants to educational establishments or not for profit organisations including other businesses
Department for Education,NATIONAL COLLEGE FOR TEACHING AND LEADERSHIP AGENCY,04/04/2016,Grants,Operations Directorate,THE ARTHUR TERRY SCHOOL SCITT,4000234191,31320.00,Grants to educational establishments or not for profit organisations including other businesses
Department for Education,NATIONAL COLLEGE FOR TEACHING AND LEADERSHIP AGENCY,04/04/2016,Grants,Operations Directorate,UNIVERSITY OF YORK,4000234193,171720.00,Grants to educational establishments or not for profit organisations including other businesses
Department for Education,NATIONAL COLLEGE FOR TEACHING AND LEADERSHIP AGENCY,04/04/2016,Grants,Operations Directorate,UNIVERSITY OF NEWCASTLE UPON TYNE,4000234194,133470.00,Grants to educational establishments or not for profit organisations including other businesses
Department for Education,NATIONAL COLLEGE FOR TEACHING AND LEADERSHIP AGENCY,04/04/2016,Grants,Operations Directorate,UNIVERSITY OF WOLVERHAMPTON,4000234195,200880.00,Grants to educational establishments or not for profit organisations including other businesses
Department for Education,NATIONAL COLLEGE FOR TEACHING AND LEADERSHIP AGENCY,04/04/2016,Grants,Operations Directorate,UNIVERSITY OF WOLVERHAMPTON,4000234195,8910.00,Grants to educational establishments or not for profit organisations including other businesses
Department for Education,NATIONAL COLLEGE FOR TEACHING AND LEADERSHIP AGENCY,04/04/2016,Grants,Delivery Directorate,UNIVERSITY OF WOLVERHAMPTON,4000234195,20160.00,Grants to educational establishments or not for profit organisations including other businesses
Department for Education,NATIONAL COLLEGE FOR TEACHING AND LEADERSHIP AGENCY,04/04/2016,Grants,Operations Directorate,UNIVERSITY OF DURHAM,4000234196,165060.00,Grants to educational establishments or not for profit organisations including other businesses
Department for Education,NATIONAL COLLEGE FOR TEACHING AND LEADERSHIP AGENCY,04/04/2016,Grants,Operations Directorate,NEWMAN COLLEGE,4000234198,150660.00,Grants to educational establishments or not for profit organisations including other businesses
Department for Education,NATIONAL COLLEGE FOR TEACHING AND LEADERSHIP AGENCY,04/04/2016,Grants,Operations Directorate,NEWMAN COLLEGE,4000234198,25795.00,Grants to educational establishments or not for profit organisations including other businesses
Department for Education,NATIONAL COLLEGE FOR TEACHING AND LEADERSHIP AGENCY,04/04/2016,Grants,Delivery Directorate,NEWMAN COLLEGE,4000234198,10440.00,Grants to educational establishments or not for profit organisations including other businesses
Department for Education,NATIONAL COLLEGE FOR TEACHING AND LEADERSHIP AGENCY,04/04/2016,Grants,Operations Directorate,THE KIRKLEES PARTNERSHIP,4000234203,25560.00,Grants to educational establishments or not for profit organisations including other businesses
Department for Education,NATIONAL COLLEGE FOR TEACHING AND LEADERSHIP AGENCY,04/04/2016,Professional Services Other,Operations Directorate,CARAT,4000234206,62553.08,Research and evaluation activities
Department for Education,NATIONAL COLLEGE FOR TEACHING AND LEADERSHIP AGENCY,04/04/2016,Grants,Operations Directorate,KENT & MEDWAY TRAINING,4000234215,60570.00,Grants to educational establishments or not for profit organisations including other businesses
Department for Education,NATIONAL COLLEGE FOR TEACHING AND LEADERSHIP AGENCY,04/04/2016,Grants,Operations Directorate,LEEDS TRINITY UNIVERSITY COLLEGE,4000234217,2754.00,Grants to educational establishments or not for profit organisations including other businesses
Department for Education,NATIONAL COLLEGE FOR TEACHING AND LEADERSHIP AGENCY,04/04/2016,Grants,Operations Directorate,LEEDS TRINITY UNIVERSITY COLLEGE,4000234217,204750.00,Grants to educational establishments or not for profit organisations including other businesses
Department for Education,NATIONAL COLLEGE FOR TEACHING AND LEADERSHIP AGENCY,04/04/2016,Grants,Delivery Directorate,LEEDS TRINITY UNIVERSITY COLLEGE,4000234217,11340.00,Grants to educational establishments or not for profit organisations including other businesses
Department for Education,NATIONAL COLLEGE FOR TEACHING AND LEADERSHIP AGENCY,04/04/2016,Grants,Operations Directorate,UNIVERSITY OF SUNDERLAND,4000234218,119250.00,Grants to educational establishments or not for profit organisations including other businesses
Department for Education,NATIONAL COLLEGE FOR TEACHING AND LEADERSHIP AGENCY,04/04/2016,Grants,Operations Directorate,UNIVERSITY OF SUNDERLAND,4000234218,7590.00,Grants to educational establishments or not for profit organisations including other businesses
Department for Education,NATIONAL COLLEGE FOR TEACHING AND LEADERSHIP AGENCY,04/04/2016,Grants,Delivery Directorate,UNIVERSITY OF SUNDERLAND,4000234218,19260.00,Grants to educational establishments or not for profit organisations including other businesses
Department for Education,NATIONAL COLLEGE FOR TEACHING AND LEADERSHIP AGENCY,04/04/2016,Grants,Operations Directorate,THE COLLEGE OF ST MARK & ST JOHN,4000234221,48510.00,Grants to educational establishments or not for profit organisations including other businesses
Department for Education,NATIONAL COLLEGE FOR TEACHING AND LEADERSHIP AGENCY,04/04/2016,Grants,Delivery Directorate,THE COLLEGE OF ST MARK & ST JOHN,4000234221,18540.00,Grants to educational establishments or not for profit organisations including other businesses
Department for Education,NATIONAL COLLEGE FOR TEACHING AND LEADERSHIP AGENCY,04/04/2016,Grants,Operations Directorate,BISHOP GROSSETESTE COLLEGE,4000234222,124650.00,Grants to educational establishments or not for profit organisations including other businesses
Department for Education,NATIONAL COLLEGE FOR TEACHING AND LEADERSHIP AGENCY,04/04/2016,Grants,Delivery Directorate,BISHOP GROSSETESTE COLLEGE,4000234222,7780.00,Grants to educational establishments or not for profit organisations including other businesses
Department for Education,NATIONAL COLLEGE FOR TEACHING AND LEADERSHIP AGENCY,04/04/2016,Grants,Operations Directorate,BILLERICAY EDUCATIONAL CONSORTIUM,4000234224,45000.00,Grants to educational establishments or not for profit organisations including other businesses
Department for Education,NATIONAL COLLEGE FOR TEACHING AND LEADERSHIP AGENCY,04/04/2016,Grants,Operations Directorate,BATH SPA UNIVERSITY,4000234225,209250.00,Grants to educational establishments or not for profit organisations including other businesses
Department for Education,NATIONAL COLLEGE FOR TEACHING AND LEADERSHIP AGENCY,04/04/2016,Grants,Delivery Directorate,BATH SPA UNIVERSITY,4000234225,32490.00,Grants to educational establishments or not for profit organisations including other businesses
Department for Education,NATIONAL COLLEGE FOR TEACHING AND LEADERSHIP AGENCY,04/04/2016,Grants,Delivery Directorate,HIBERNIA COLLEGE UK,4000234227,229763.90,Grants to educational establishments or not for profit organisations including other businesses
Department for Education,NATIONAL COLLEGE FOR TEACHING AND LEADERSHIP AGENCY,04/04/2016,Grants,Delivery Directorate,EDGE HILL UNIVERSITY,4000234232,27759.97,Grants to educational establishments or not for profit organisations including other businesses
Department for Education,NATIONAL COLLEGE FOR TEACHING AND LEADERSHIP AGENCY,04/04/2016,Grants,Delivery Directorate,CANTERBURY CHRIST CHURCH UNIVERSITY,4000234234,26533.35,Grants to educational establishments or not for profit organisations including other businesses
Department for Education,NATIONAL COLLEGE FOR TEACHING AND LEADERSHIP AGENCY,04/04/2016,Grants,Delivery Directorate,MANCHESTER METROPOLITAN UNIVERSITY,4000234235,43200.00,Grants to educational establishments or not for profit organisations including other businesses
Department for Education,NATIONAL COLLEGE FOR TEACHING AND LEADERSHIP AGENCY,04/04/2016,Grants,Delivery Directorate,BRADFORD COLLEGE,4000234241,61654.28,Grants to educational establishments or not for profit organisations including other businesses
Department for Education,NATIONAL COLLEGE FOR TEACHING AND LEADERSHIP AGENCY,04/04/2016,Grants,Delivery Directorate,ST MARYS UNIVERSITY COLLEGE,4000234248,25436.19,Grants to educational establishments or not for profit organisations including other businesses
Department for Education,NATIONAL COLLEGE FOR TEACHING AND LEADERSHIP AGENCY,04/04/2016,Grants,Delivery Directorate,UNIVERSITY OF EAST LONDON,4000234255,30600.00,Grants to educational establishments or not for profit organisations including other businesses
Department for Education,NATIONAL COLLEGE FOR TEACHING AND LEADERSHIP AGENCY,04/04/2016,Grants,Delivery Directorate,UNIVERSITY OF SUSSEX,4000234259,89280.93,Grants to educational establishments or not for profit organisations including other businesses
Department for Education,NATIONAL COLLEGE FOR TEACHING AND LEADERSHIP AGENCY,05/04/2016,Professional Services Other,Operations Directorate,EVERSHEDS LLP,4000234262,24596.00,Legal services provided externally (excluding Treasury Solicitor) 
Department for Education,DEPARTMENT FOR EDUCATION,05/04/2016,Programme costs,"Children's Services, Equalities and Communication Safeguarding Group",NWG NETWORK,4000234264,76041.30,Funding to deliver policies (excluding consultancy) paid to third parties via a service delivery contract
Department for Education,NATIONAL COLLEGE FOR TEACHING AND LEADERSHIP AGENCY,08/04/2016,Professional Services Other,Operations Directorate,BROWNE JACOBSON SOLICITORS,4000234640,109960.40,Legal services provided externally (excluding Treasury Solicitor)
Department for Education,NATIONAL COLLEGE FOR TEACHING AND LEADERSHIP AGENCY,15/04/2016,Professional Services Other,Operations Directorate,BROWNE JACOBSON SOLICITORS,4000235116,44808.12,Legal services provided externally (excluding Treasury Solicitor)
Department for Education,DEPARTMENT FOR EDUCATION,20/04/2016,Communications,"Children's Services, Equalities and Communication Safeguarding Group",CARAT,4000235428,35978.12,Marketing services
Department for Education,DEPARTMENT FOR EDUCATION,27/04/2016,Facilities,Property Asset Management Group,BT GLOBAL SERVICES,4000235956,70424.25,Property management
Department for Education,DEPARTMENT FOR EDUCATION,26/04/2016,Professional Services Consultancy and Contingent Labour,Information Technology Group,CAPITA BUSINESS SERVICES LTD,4000235942,5373.02,Costs related to temporary workers
Department for Education,DEPARTMENT FOR EDUCATION,29/04/2016,Professional Services Consultancy and Contingent Labour,Information Technology Group,CAPITA BUSINESS SERVICES LTD,4000236204,34776.15,Costs related to temporary workers
Department for Education,DEPARTMENT FOR EDUCATION,26/04/2016,Professional Services Other,Adoption and Children in Care Division,CAPGEMINI UK PLC,4000235903,30000.00,"Fees / expenses of professionals, for example to implement advice or changes"
Department for Education,DEPARTMENT FOR EDUCATION,06/04/2016,Grants,Office of the Schools Commissioner Group,SELBY EDUCATIONAL TRUST,4000234349,72500.00,Grants to educational establishments or not for profit organisations including other businesses
Department for Education,DEPARTMENT FOR EDUCATION,06/04/2016,Grants,Academies Delivery Group,ELLESMERE PRIMARY SCHOOL,4000234350,25000.00,Grants to educational establishments or not for profit organisations including other businesses
Department for Education,DEPARTMENT FOR EDUCATION,06/04/2016,Grants,Academies Delivery Group,ROBERT MILES JUNIOR SCHOOL,4000234351,25000.00,Grants to educational establishments or not for profit organisations including other businesses
Department for Education,DEPARTMENT FOR EDUCATION,06/04/2016,Grants,Free School Group,BURY ST EDMUNDS ACADEMY TRUST,4000234355,60000.00,Grants to educational establishments or not for profit organisations including other businesses
Department for Education,STANDARDS AND TESTING AGENCY,06/04/2016,Programme costs,Test Development Division,LEARN DIRECT,4000234358,77052.72,Funding to deliver policies (excluding consultancy) paid to third parties via a service delivery contract
Department for Education,NATIONAL COLLEGE FOR TEACHING AND LEADERSHIP AGENCY,06/04/2016,Programme costs,Delivery Directorate,THE BRILLIANT CLUB,4000234359,104958.00,Funding to deliver policies (excluding consultancy) paid to third parties via a service delivery contract
Department for Education,NATIONAL COLLEGE FOR TEACHING AND LEADERSHIP AGENCY,06/04/2016,Professional Services Other,Operations Directorate,LONDON ECONOMICS LTD,4000234361,26457.50,Research and evaluation activities
Department for Education,DEPARTMENT FOR EDUCATION,06/04/2016,Grants,Free School Group,REACH 2 ESSEX ACADEMY TRUST,4000234364,110000.00,Grants to educational establishments or not for profit organisations including other businesses
Department for Education,DEPARTMENT FOR EDUCATION,29/04/2016,Professional Services Consultancy and Contingent Labour,Academies Delivery Group,CAPITA BUSINESS SERVICES LTD,4000236204,4236.48,Costs related to temporary workers
Department for Education,DEPARTMENT FOR EDUCATION,11/04/2016,Professional Services Other,Finance and Commercial Group,CAPITA BUSINESS SERVICES LTD,4000234763,2017.39,"Fees / expenses of professionals, for example to implement advice or changes"
Department for Education,DEPARTMENT FOR EDUCATION,06/04/2016,Grants,Academies Delivery Group,WAKEFIELD CITY MULTI ACADEMIES TRUST,4000234367,25000.00,Grants to educational establishments or not for profit organisations including other businesses
Department for Education,DEPARTMENT FOR EDUCATION,06/04/2016,Grants,Academies Delivery Group,WALTON HIGH SCHOOL,4000234370,25000.00,Grants to educational establishments or not for profit organisations including other businesses
Department for Education,DEPARTMENT FOR EDUCATION,06/04/2016,Grants,Office of the Schools Commissioner Group,JOHN DONNE ACADEMY,4000234371,58000.00,Grants to educational establishments or not for profit organisations including other businesses
Department for Education,NATIONAL COLLEGE FOR TEACHING AND LEADERSHIP AGENCY,06/04/2016,Programme costs,Operations Directorate,TEXUNA TECHNOLOGIES,4000234372,31981.87,Funding to deliver policies (excluding consultancy) paid to third parties via a service delivery contract
Department for Education,DEPARTMENT FOR EDUCATION,06/04/2016,Grants,Academies Delivery Group,NETHERTHORPE SCHOOL,4000234374,25000.00,Grants to educational establishments or not for profit organisations including other businesses
Department for Education,DEPARTMENT FOR EDUCATION,06/04/2016,Grants,Academies Delivery Group,KEYWORTH PRIMARY & NURSERY SCHOOL,4000234375,25000.00,Grants to educational establishments or not for profit organisations including other businesses
Department for Education,DEPARTMENT FOR EDUCATION,06/04/2016,Programme costs,"Children's Services, Equalities and Communication Safeguarding Group",SKILLS FOR CARE LTD,4000234381,105081.12,Funding to deliver policies (excluding consultancy) paid to third parties via a service delivery contract
Department for Education,DEPARTMENT FOR EDUCATION,06/04/2016,Grants,Academies Delivery Group,DE FERRERS SPECIALIST TECHNOLOGY COLLEGE,4000234382,70000.00,Grants to educational establishments or not for profit organisations including other businesses
Department for Education,DEPARTMENT FOR EDUCATION,06/04/2016,Grants,Academies Delivery Group,DE FERRERS SPECIALIST TECHNOLOGY COLLEGE,4000234382,50000.00,Grants to educational establishments or not for profit organisations including other businesses
Department for Education,DEPARTMENT FOR EDUCATION,06/04/2016,Grants,Academies Delivery Group,TOLLERTON PRIMARY SCHOOL,4000234383,25000.00,Grants to educational establishments or not for profit organisations including other businesses
Department for Education,NATIONAL COLLEGE FOR TEACHING AND LEADERSHIP AGENCY,01/04/2016,Professional Services Consultancy and Contingent Labour,Delivery Directorate,CARAT,4000233813,6672.37,Costs related to temporary workers
Department for Education,DEPARTMENT FOR EDUCATION,18/04/2016,Professional Services Consultancy and Contingent Labour,Information Technology Group,FDM GROUP LTD,4000235163,14040.00,Costs related to temporary workers
Department for Education,DEPARTMENT FOR EDUCATION,18/04/2016,Professional Services Consultancy and Contingent Labour,Information Technology Group,FDM GROUP LTD,4000235163,17640.00,Costs related to temporary workers
Department for Education,DEPARTMENT FOR EDUCATION,04/04/2016,Professional Services Consultancy and Contingent Labour,Information Technology Group,METHODS CONSULTING LTD,4000234021,780.00,Costs related to temporary workers
Department for Education,DEPARTMENT FOR EDUCATION,06/04/2016,Grants,Office of the Schools Commissioner Group,BARTON COURT GRAMMAR SCHOOL,4000234385,58500.00,Grants to educational establishments or not for profit organisations including other businesses
Department for Education,DEPARTMENT FOR EDUCATION,07/04/2016,Grants,Office of the Schools Commissioner Group,ABBEY GRANGE ACADEMY,4000234390,83600.00,Grants to educational establishments or not for profit organisations including other businesses
Department for Education,DEPARTMENT FOR EDUCATION,07/04/2016,Grants,"Assessment, Curriculum and General Qualifications Group",SOUTH DEVON COLLEGE,4000234392,30000.00,Grants to educational establishments or not for profit organisations including other businesses
Department for Education,DEPARTMENT FOR EDUCATION,07/04/2016,Grants,Office of the Schools Commissioner Group,GAWTHORPE COMMUNITY PRIMARY SCHOOL,4000234393,25000.00,Grants to educational establishments or not for profit organisations including other businesses
Department for Education,DEPARTMENT FOR EDUCATION,07/04/2016,Grants,Office of the Schools Commissioner Group,BECKFOOT SCHOOL,4000234404,50000.00,Grants to educational establishments or not for profit organisations including other businesses
Department for Education,DEPARTMENT FOR EDUCATION,07/04/2016,Grants,Office of the Schools Commissioner Group,SOUTHMOOR ACADEMY,4000234416,99050.00,Grants to educational establishments or not for profit organisations including other businesses
Department for Education,DEPARTMENT FOR EDUCATION,07/04/2016,Grants,Office of the Schools Commissioner Group,CIDARI EDUCATION LTD,4000234418,50000.00,Grants to educational establishments or not for profit organisations including other businesses
Department for Education,DEPARTMENT FOR EDUCATION,07/04/2016,Grants,Academies Delivery Group,REDHILLS PRIMARY SCHOOL,4000234421,25000.00,Grants to educational establishments or not for profit organisations including other businesses
Department for Education,DEPARTMENT FOR EDUCATION,07/04/2016,Grants,Office of the Schools Commissioner Group,THE HEATH FAMILY NORTH WEST,4000234422,50000.00,Grants to educational establishments or not for profit organisations including other businesses
Department for Education,DEPARTMENT FOR EDUCATION,11/04/2016,Professional Services Other,Finance and Commercial Group,CAPITA BUSINESS SERVICES LTD,4000234763,2248.51,"Fees / expenses of professionals, for example to implement advice or changes"
Department for Education,NATIONAL COLLEGE FOR TEACHING AND LEADERSHIP AGENCY,07/04/2016,Programme costs,Operations Directorate,TEXUNA TECHNOLOGIES,4000234430,27453.52,Funding to deliver policies (excluding consultancy) paid to third parties via a service delivery contract
Department for Education,DEPARTMENT FOR EDUCATION,07/04/2016,Grants,Office of the Schools Commissioner Group,ENQUIRE LEARNING TRUST,4000234432,100000.00,Grants to educational establishments or not for profit organisations including other businesses
Department for Education,DEPARTMENT FOR EDUCATION,07/04/2016,Grants,Office of the Schools Commissioner Group,ENTERPRISE SOUTH LIVERPOOL ACADEMY,4000234434,25000.00,Grants to educational establishments or not for profit organisations including other businesses
Department for Education,DEPARTMENT FOR EDUCATION,07/04/2016,Grants,Office of the Schools Commissioner Group,FYLDE COAST ACADEMY TRUST,4000234435,103000.00,Grants to educational establishments or not for profit organisations including other businesses
Department for Education,DEPARTMENT FOR EDUCATION,07/04/2016,Grants,Office of the Schools Commissioner Group,INSPIRE MULTI ACADEMY TRUST,4000234439,100000.00,Grants to educational establishments or not for profit organisations including other businesses
Department for Education,DEPARTMENT FOR EDUCATION,07/04/2016,Grants,Academies Delivery Group,INSPIRE MULTI ACADEMY TRUST,4000234439,40000.00,Grants to educational establishments or not for profit organisations including other businesses
Department for Education,DEPARTMENT FOR EDUCATION,07/04/2016,Grants,Office of the Schools Commissioner Group,PENDLE EDUCATION TRUST,4000234440,10000.00,Grants to educational establishments or not for profit organisations including other businesses
Department for Education,DEPARTMENT FOR EDUCATION,07/04/2016,Grants,Academies Delivery Group,PENDLE EDUCATION TRUST,4000234440,25000.00,Grants to educational establishments or not for profit organisations including other businesses
Department for Education,DEPARTMENT FOR EDUCATION,07/04/2016,Grants,Academies Delivery Group,GISLINGHAM CEVCP SCHOOL,4000234443,100000.00,Grants to educational establishments or not for profit organisations including other businesses
Department for Education,DEPARTMENT FOR EDUCATION,07/04/2016,Grants,Office of the Schools Commissioner Group,BRIGHTER FUTURES ACADEMY TRUST SIDDAL PRIMARY SCHOOL,4000234448,93995.00,Grants to educational establishments or not for profit organisations including other businesses
Department for Education,DEPARTMENT FOR EDUCATION,07/04/2016,Grants,Office of the Schools Commissioner Group,THE STEP ACADEMY TRUST,4000234452,50000.00,Grants to educational establishments or not for profit organisations including other businesses
Department for Education,DEPARTMENT FOR EDUCATION,07/04/2016,Grants,Academies Delivery Group,HIGHFIELDS COMMUNITY PRIMARY SCHOOL,4000234453,25000.00,Grants to educational establishments or not for profit organisations including other businesses
Department for Education,DEPARTMENT FOR EDUCATION,07/04/2016,Grants,Office of the Schools Commissioner Group,THE KEYS FEDERATION,4000234454,50000.00,Grants to educational establishments or not for profit organisations including other businesses
Department for Education,DEPARTMENT FOR EDUCATION,07/04/2016,Grants,Office of the Schools Commissioner Group,BRADFORD DIOCESAN ACADEMIES TRUST,4000234455,70000.00,Grants to educational establishments or not for profit organisations including other businesses
Department for Education,DEPARTMENT FOR EDUCATION,07/04/2016,Grants,"Assessment, Curriculum and General Qualifications Group",UNIVERSITY OF CAMBRIDGE,4000234459,271764.75,Grants to educational establishments or not for profit organisations including other businesses
Department for Education,DEPARTMENT FOR EDUCATION,07/04/2016,Grants,Office of the Schools Commissioner Group,NEW CHARTER ACADEMY,4000234460,50000.00,Grants to educational establishments or not for profit organisations including other businesses
Department for Education,DEPARTMENT FOR EDUCATION,07/04/2016,Grants,Academies Delivery Group,LEADING LEARNING TRUST,4000234461,45000.00,Grants to educational establishments or not for profit organisations including other businesses
Department for Education,DEPARTMENT FOR EDUCATION,07/04/2016,Grants,Academies Delivery Group,HIGH GREAVE INFANT SCHOOL,4000234462,25000.00,Grants to educational establishments or not for profit organisations including other businesses
Department for Education,DEPARTMENT FOR EDUCATION,07/04/2016,Grants,Academies Delivery Group,HIGH GREAVE JUNIOR SCHOOL,4000234463,25000.00,Grants to educational establishments or not for profit organisations including other businesses
Department for Education,DEPARTMENT FOR EDUCATION,07/04/2016,Grants,Academies Delivery Group,CATCLIFFE PRIMARY SCHOOL,4000234465,25000.00,Grants to educational establishments or not for profit organisations including other businesses
Department for Education,DEPARTMENT FOR EDUCATION,07/04/2016,Grants,Academies Delivery Group,SHALDON PRIMARY SCHOOL,4000234467,25000.00,Grants to educational establishments or not for profit organisations including other businesses
Department for Education,DEPARTMENT FOR EDUCATION,07/04/2016,Grants,Academies Delivery Group,MANOR MULTI ACADEMY TRUST,4000234474,70000.00,Grants to educational establishments or not for profit organisations including other businesses
Department for Education,DEPARTMENT FOR EDUCATION,07/04/2016,Grants,Office of the Schools Commissioner Group,AD ASTRA ACADEMY TRUST,4000234476,98000.00,Grants to educational establishments or not for profit organisations including other businesses
Department for Education,DEPARTMENT FOR EDUCATION,07/04/2016,Grants,Early Years Group,NATIONAL CHILDRENS BUREAU,4000234480,129202.29,Grants to educational establishments or not for profit organisations including other businesses
Department for Education,DEPARTMENT FOR EDUCATION,07/04/2016,Grants,Children's Services Special Educational Needs Group,NHS HARINGEY CCG,4000234487,100000.00,Grants to educational establishments or not for profit organisations including other businesses
Department for Education,DEPARTMENT FOR EDUCATION,07/04/2016,Grants,Children's Services Special Educational Needs Group,NHS BIRMINGHAM SOUTH CENTRAL CCG,4000234489,100000.00,Grants to educational establishments or not for profit organisations including other businesses
Department for Education,DEPARTMENT FOR EDUCATION,07/04/2016,Grants,Office of the Schools Commissioner Group,ORMISTON ACADEMIES TRUST,4000234493,72850.00,Grants to educational establishments or not for profit organisations including other businesses
Department for Education,DEPARTMENT FOR EDUCATION,07/04/2016,Grants,Office of the Schools Commissioner Group,UNITED LEARNING TRUST,4000234496,700000.00,Grants to educational establishments or not for profit organisations including other businesses
Department for Education,DEPARTMENT FOR EDUCATION,07/04/2016,Grants,Office of the Schools Commissioner Group,SHOTTON HALL SCITT,4000234499,100000.00,Grants to educational establishments or not for profit organisations including other businesses
Department for Education,DEPARTMENT FOR EDUCATION,07/04/2016,Grants,Adoption and Children in Care Division,CONSORTIUM OF VOLUNTARY ADOPTION AGENCIES UK LTD,4000234513,524394.00,Grants to educational establishments or not for profit organisations including other businesses
Department for Education,DEPARTMENT FOR EDUCATION,07/04/2016,Grants,Children's Services Special Educational Needs Group,THE CHILDRENS TRUST,4000234520,111718.00,Grants to educational establishments or not for profit organisations including other businesses
Department for Education,DEPARTMENT FOR EDUCATION,07/04/2016,Grants,Office of the Schools Commissioner Group,THE EDUCATION PARTNERSHIP TRUST,4000234523,25000.00,Grants to educational establishments or not for profit organisations including other businesses
Department for Education,DEPARTMENT FOR EDUCATION,07/04/2016,Grants,"Children's Services, Equalities and Communication Safeguarding Group",DONCASTER CHILDRENS TRUST,4000234524,113878.00,Grants to educational establishments or not for profit organisations including other businesses
Department for Education,DEPARTMENT FOR EDUCATION,07/04/2016,Grants,Office of the Schools Commissioner Group,INNOVATION ENTERPRISE ACADEMY,4000234525,50000.00,Grants to educational establishments or not for profit organisations including other businesses
Department for Education,DEPARTMENT FOR EDUCATION,07/04/2016,Grants,Post 16 and Disadvantage Group,GREATER LONDON AUTHORITY,4000234527,150000.00,Grants to local authorities / other establishments within aggregate external funding or aggregate exchequer grant
Department for Education,STANDARDS AND TESTING AGENCY,07/04/2016,Programme costs,Test Development Division,SCOTTISH QUALIFICATIONS AUTHORITY,4000234530,221406.74,Funding to deliver policies (excluding consultancy) paid to third parties via a service delivery contract
Department for Education,DEPARTMENT FOR EDUCATION,07/04/2016,Grants,Office of the Schools Commissioner Group,AIREDALE ACADEMIES TRUST,4000234533,50000.00,Grants to educational establishments or not for profit organisations including other businesses
Department for Education,DEPARTMENT FOR EDUCATION,07/04/2016,Grants,Office of the Schools Commissioner Group,INTERSERVE ACADEMIES TRUST,4000234536,50000.00,Grants to educational establishments or not for profit organisations including other businesses
Department for Education,DEPARTMENT FOR EDUCATION,07/04/2016,Grants,Office of the Schools Commissioner Group,WATERTON ACADEMY TRUST,4000234537,50000.00,Grants to educational establishments or not for profit organisations including other businesses
Department for Education,DEPARTMENT FOR EDUCATION,07/04/2016,Grants,Office of the Schools Commissioner Group,WISE ACADEMIES,4000234540,100000.00,Grants to educational establishments or not for profit organisations including other businesses
Department for Education,NATIONAL COLLEGE FOR TEACHING AND LEADERSHIP AGENCY,07/04/2016,Professional Services Other,Operations Directorate,NATIONAL FOUNDATION FOR EDUCATIONAL RESEARCH,4000234543,32938.80,Research and evaluation activities
Department for Education,NATIONAL COLLEGE FOR TEACHING AND LEADERSHIP AGENCY,07/04/2016,Professional Services Other,Operations Directorate,NATIONAL FOUNDATION FOR EDUCATIONAL RESEARCH,4000234543,5000.00,Research and evaluation activities
Department for Education,DEPARTMENT FOR EDUCATION,07/04/2016,Grants,Office of the Schools Commissioner Group,WHITEHILL COMMUNITY ACADEMY,4000234548,25000.00,Grants to educational establishments or not for profit organisations including other businesses
Department for Education,DEPARTMENT FOR EDUCATION,07/04/2016,Grants,Office of the Schools Commissioner Group,CHIPSTEAD VALLEY ACADEMY TRUST,4000234554,50000.00,Grants to educational establishments or not for profit organisations including other businesses
Department for Education,DEPARTMENT FOR EDUCATION,07/04/2016,Grants,Children's Services Special Educational Needs Group,COUNCIL FOR DISABLED CHILDREN,4000234556,63391.53,Grants to educational establishments or not for profit organisations including other businesses
Department for Education,DEPARTMENT FOR EDUCATION,07/04/2016,Grants,Office of the Schools Commissioner Group,THE HARMONY TRUST,4000234559,100000.00,Grants to educational establishments or not for profit organisations including other businesses
Department for Education,DEPARTMENT FOR EDUCATION,07/04/2016,Grants,Office of the Schools Commissioner Group,FOCUS ACADEMIES TRUST UK LTD,4000234564,50000.00,Grants to educational establishments or not for profit organisations including other businesses
Department for Education,DEPARTMENT FOR EDUCATION,08/04/2016,Grants,Academies Delivery Group,VENN ACADEMY TRUST,4000234569,25000.00,Grants to educational establishments or not for profit organisations including other businesses
Department for Education,DEPARTMENT FOR EDUCATION,08/04/2016,Grants,Academies Delivery Group,WELTON PRIMARY SCHOOL,4000234570,25000.00,Grants to educational establishments or not for profit organisations including other businesses
Department for Education,DEPARTMENT FOR EDUCATION,08/04/2016,Grants,Academies Delivery Group,LONGVERNAL PRIMARY SCHOOL,4000234571,25000.00,Grants to educational establishments or not for profit organisations including other businesses
Department for Education,DEPARTMENT FOR EDUCATION,08/04/2016,Grants,Academies Delivery Group,SEASIDE PRIMARY SCHOOL,4000234572,25000.00,Grants to educational establishments or not for profit organisations including other businesses
Department for Education,DEPARTMENT FOR EDUCATION,08/04/2016,Grants,Government Equalities Office,MEDIA SMART LTD,4000234573,25000.00,Grants to educational establishments or not for profit organisations including other businesses
Department for Education,DEPARTMENT FOR EDUCATION,08/04/2016,Grants,Academies Delivery Group,ACE SCHOOLS MULTI ACADEMY TRUST,4000234574,45000.00,Grants to educational establishments or not for profit organisations including other businesses
Department for Education,DEPARTMENT FOR EDUCATION,08/04/2016,Grants,Academies Delivery Group,HEYMANN PRIMARY & NURSERY SCHOOL,4000234575,95000.00,Grants to educational establishments or not for profit organisations including other businesses
Department for Education,DEPARTMENT FOR EDUCATION,08/04/2016,Grants,Academies Delivery Group,HIGH GREAVE INFANT SCHOOL,4000234576,70000.00,Grants to educational establishments or not for profit organisations including other businesses
Department for Education,DEPARTMENT FOR EDUCATION,08/04/2016,Grants,Academies Delivery Group,WYMONDHAM COLLEGE ACADEMY TRUST,4000234580,70000.00,Grants to educational establishments or not for profit organisations including other businesses
Department for Education,DEPARTMENT FOR EDUCATION,08/04/2016,Grants,Academies Delivery Group,THE PARTNERSHIP TRUST,4000234581,40000.00,Grants to educational establishments or not for profit organisations including other businesses
Department for Education,DEPARTMENT FOR EDUCATION,08/04/2016,Grants,Academies Delivery Group,RUSHEY MEAD EDUCATIONAL TRUST,4000234582,60000.00,Grants to educational establishments or not for profit organisations including other businesses
Department for Education,DEPARTMENT FOR EDUCATION,08/04/2016,Grants,Academies Delivery Group,TOTNES FEDERATION OF VILLAGE SCHOOLS,4000234584,90000.00,Grants to educational establishments or not for profit organisations including other businesses
Department for Education,DEPARTMENT FOR EDUCATION,08/04/2016,Grants,Children's Services Special Educational Needs Group,NHS SOUTH CHESHIRE CCG,4000234586,100000.00,Grants to educational establishments or not for profit organisations including other businesses
Department for Education,DEPARTMENT FOR EDUCATION,08/04/2016,Grants,Adoption and Children in Care Division,PAC UK,4000234590,73555.00,Grants to educational establishments or not for profit organisations including other businesses
Department for Education,DEPARTMENT FOR EDUCATION,08/04/2016,Grants,"Children's Services, Equalities and Communication Safeguarding Group",FORWARD,4000234591,32743.38,Grants to educational establishments or not for profit organisations including other businesses
Department for Education,DEPARTMENT FOR EDUCATION,08/04/2016,Grants,Children's Services Special Educational Needs Group,DRIVER YOUTH TRUST,4000234593,39624.73,Grants to educational establishments or not for profit organisations including other businesses
Department for Education,DEPARTMENT FOR EDUCATION,08/04/2016,Grants,Children's Services Special Educational Needs Group,CENTREPOINT,4000234594,108647.34,Grants to educational establishments or not for profit organisations including other businesses
Department for Education,DEPARTMENT FOR EDUCATION,08/04/2016,Grants,Children's Services Special Educational Needs Group,THE NATIONAL AUTISTIC SOCIETY VCS,4000234602,32556.42,Grants to educational establishments or not for profit organisations including other businesses
Department for Education,DEPARTMENT FOR EDUCATION,08/04/2016,Grants,Academies Delivery Group,WHITE WOODS PRIMARY ACADEMY TRUST,4000234607,75000.00,Grants to educational establishments or not for profit organisations including other businesses
Department for Education,DEPARTMENT FOR EDUCATION,08/04/2016,Grants,"Children's Services, Equalities and Communication Safeguarding Group",SLOUGH BOROUGH COUNCIL,4000234611,467637.00,Grants to local authorities / other establishments within aggregate external funding or aggregate exchequer grant
Department for Education,DEPARTMENT FOR EDUCATION,08/04/2016,Grants,Government Equalities Office,PSHE ASSOCIATION,4000234612,25550.00,Grants to educational establishments or not for profit organisations including other businesses
Department for Education,DEPARTMENT FOR EDUCATION,08/04/2016,Grants,Children's Services Special Educational Needs Group,COUNCIL FOR DISABLED CHILDREN,4000234616,64643.06,Grants to educational establishments or not for profit organisations including other businesses
Department for Education,DEPARTMENT FOR EDUCATION,11/04/2016,Professional Services Other,Academies Delivery Group,CAPITA BUSINESS SERVICES LTD,4000234763,13789.68,"Fees / expenses of professionals, for example to implement advice or changes"
Department for Education,DEPARTMENT FOR EDUCATION,26/04/2016,Professional Services Other,Finance and Commercial Group,CAPITA BUSINESS SERVICES LTD,4000235942,2810.64,"Fees / expenses of professionals, for example to implement advice or changes"
Department for Education,DEPARTMENT FOR EDUCATION,08/04/2016,Grants,"Assessment, Curriculum and General Qualifications Group",CHOIR SCHOOLS ASSOCIATION BURSARY TRUST LTD,4000234627,214119.00,Grants to educational establishments or not for profit organisations including other businesses
Department for Education,DEPARTMENT FOR EDUCATION,08/04/2016,Grants,Academies Delivery Group,PARALLEL LEARNING TRUST,4000234628,42500.00,Grants to educational establishments or not for profit organisations including other businesses
Department for Education,DEPARTMENT FOR EDUCATION,08/04/2016,Grants,Academies Delivery Group,STOCKSFIELD AVENUE PRIMARY SCHOOL,4000234629,100000.00,Grants to educational establishments or not for profit organisations including other businesses
Department for Education,DEPARTMENT FOR EDUCATION,08/04/2016,Grants,Teachers and Teaching Group,COMMUNITY SECURITY TRUST,4000234634,872039.00,Grants to educational establishments or not for profit organisations including other businesses
Department for Education,NATIONAL COLLEGE FOR TEACHING AND LEADERSHIP AGENCY,08/04/2016,Programme costs,Delivery Directorate,TELEPERFORMANCE LTD,4000234637,19228.16,Funding to deliver policies (excluding consultancy) paid to third parties via a service delivery contract
Department for Education,NATIONAL COLLEGE FOR TEACHING AND LEADERSHIP AGENCY,08/04/2016,Programme costs,Operations Directorate,TELEPERFORMANCE LTD,4000234637,6131.08,Funding to deliver policies (excluding consultancy) paid to third parties via a service delivery contract
Department for Education,NATIONAL COLLEGE FOR TEACHING AND LEADERSHIP AGENCY,08/04/2016,Office Solutions,Operations Directorate,TELEPERFORMANCE LTD,4000234637,4783.92,Post and courier services
Department for Education,DEPARTMENT FOR EDUCATION,19/04/2016,Professional Services Other,"Children's Services, Equalities and Communication Safeguarding Group",DELOITTE LLP,4000235262,96476.99,"Fees / expenses of professionals, for example to implement advice or changes"
Department for Education,NATIONAL COLLEGE FOR TEACHING AND LEADERSHIP AGENCY,11/04/2016,Professional Services Other,Delivery Directorate,FUTURE LEADERS LTD,4000234722,380000.00,"Fees / expenses of professionals, for example to implement advice or changes"
Department for Education,DEPARTMENT FOR EDUCATION,25/04/2016,Professional Services Other,Property Asset Management Group,GVA GRIMLEY LTD,4000235871,30000.00,"Fees / expenses of professionals, for example to implement advice or changes"
Department for Education,DEPARTMENT FOR EDUCATION,11/04/2016,Professional Services Other,Property Asset Management Group,METHODS CONSULTING LTD,4000234714,15990.00,"Fees / expenses of professionals, for example to implement advice or changes"
Department for Education,DEPARTMENT FOR EDUCATION,08/04/2016,Grants,Academies Delivery Group,TBAP TRUST,4000234641,42500.00,Grants to educational establishments or not for profit organisations including other businesses
Department for Education,DEPARTMENT FOR EDUCATION,08/04/2016,ICT,Information Technology Group,INSIGHT DIRECT UK LTD,4000234652,5033.86,ICT Hardware
Department for Education,DEPARTMENT FOR EDUCATION,08/04/2016,ICT,Information Technology Group,INSIGHT DIRECT UK LTD,4000234652,21983.28,Partial payment for IT hardware / consumables
Department for Education,DEPARTMENT FOR EDUCATION,08/04/2016,Grants,Academies Delivery Group,SIR WILLIAM BORLASES GRAMMAR SCHOOL,4000234656,70000.00,Grants to educational establishments or not for profit organisations including other businesses
Department for Education,DEPARTMENT FOR EDUCATION,08/04/2016,Grants,Early Years Group,NATIONAL PORTAGE ASSOCIATION,4000234658,40527.15,Grants to educational establishments or not for profit organisations including other businesses
Department for Education,DEPARTMENT FOR EDUCATION,08/04/2016,Grants,Children's Services Special Educational Needs Group,BRITISH DYSLEXIA ASSOCIATION,4000234664,54534.97,Grants to educational establishments or not for profit organisations including other businesses
Department for Education,DEPARTMENT FOR EDUCATION,08/04/2016,Grants,Early Years Group,INSTITUTE OF WELLBEING LTD,4000234666,34203.08,Grants to educational establishments or not for profit organisations including other businesses
Department for Education,DEPARTMENT FOR EDUCATION,08/04/2016,Grants,Academies Delivery Group,BISHOP JUSTUS CE SCHOOL,4000234670,25000.00,Grants to educational establishments or not for profit organisations including other businesses
Department for Education,DEPARTMENT FOR EDUCATION,11/04/2016,ICT,Participation and Traineeships Division,CAREERVISION LTD,4000234675,164500.00,ICT Services - hardware maintenance and support
Department for Education,DEPARTMENT FOR EDUCATION,11/04/2016,Grants,Adoption and Children in Care Division,CAMBRIDGE EDUCATION,4000234676,1000000.00,Grants to educational establishments or not for profit organisations including other businesses
Department for Education,DEPARTMENT FOR EDUCATION,11/04/2016,Programme costs,Vocational Qualifications Division,LEARNING & SKILLS COUNCIL,4000234678,25804.90,Funding to external organisations to deliver policies (excluding consultancy)
Department for Education,DEPARTMENT FOR EDUCATION,11/04/2016,Programme costs,"Assessment, Curriculum and General Qualifications Group",MATHEMATICS IN EDUCATION & INDUSTRY,4000234679,763500.00,Funding to deliver policies (excluding consultancy) paid to third parties via a service delivery contract
Department for Education,DEPARTMENT FOR EDUCATION,11/04/2016,Grants,Academies Delivery Group,ARCHBISHOP HOLGATES SCHOOL,4000234682,75000.00,Grants to educational establishments or not for profit organisations including other businesses
Department for Education,DEPARTMENT FOR EDUCATION,11/04/2016,Grants,Academies Delivery Group,ORMISTON ACADEMIES TRUST,4000234689,70000.00,Grants to educational establishments or not for profit organisations including other businesses
Department for Education,DEPARTMENT FOR EDUCATION,11/04/2016,Programme costs,"Assessment, Curriculum and General Qualifications Group",TRIBAL EDUCATION LIMITED,4000234690,145534.80,Funding to deliver policies (excluding consultancy) paid to third parties via a service delivery contract
Department for Education,DEPARTMENT FOR EDUCATION,11/04/2016,Professional Services Other,Strategic Analysis and Research Group,NATIONAL CENTRE FOR SOCIAL RESEARCH,4000234703,202776.00,Research and evaluation activities
Department for Education,DEPARTMENT FOR EDUCATION,06/04/2016,Professional Services Consultancy and Contingent Labour,Information Technology Group,METHODS CONSULTING LTD,4000234384,20052.00,Costs related to temporary workers
Department for Education,DEPARTMENT FOR EDUCATION,06/04/2016,Professional Services Consultancy and Contingent Labour,Information Technology Group,METHODS CONSULTING LTD,4000234384,702.48,Costs related to temporary workers
Department for Education,DEPARTMENT FOR EDUCATION,25/04/2016,Energy and Fuels,Property Asset Management Group,CORONA ENERGY,4000235808,43499.22,Gas supply
Department for Education,DEPARTMENT FOR EDUCATION,13/04/2016,Energy and Fuels,Property Asset Management Group,EDF ENERGY LTD,4000234888,94759.29,Electricity supply
Department for Education,DEPARTMENT FOR EDUCATION,11/04/2016,Grants,Academies Delivery Group,ST MARTINS SCHOOL,4000234717,25000.00,Grants to educational establishments or not for profit organisations including other businesses
Department for Education,DEPARTMENT FOR EDUCATION,11/04/2016,Grants,Academies Delivery Group,KAYES FIRST & NURSERY SCHOOL,4000234718,25000.00,Grants to educational establishments or not for profit organisations including other businesses
Department for Education,DEPARTMENT FOR EDUCATION,11/04/2016,Professional Services Other,Property Asset Management Group,METHODS CONSULTING LTD,4000234714,4620.00,"Fees / expenses of professionals, for example to implement advice or changes"
Department for Education,DEPARTMENT FOR EDUCATION,11/04/2016,Grants,Academies Delivery Group,JESMOND GARDENS PRIMARY SCHOOL,4000234727,25000.00,Grants to educational establishments or not for profit organisations including other businesses
Department for Education,DEPARTMENT FOR EDUCATION,11/04/2016,Grants,Academies Delivery Group,MOORPARK JUNIOR SCHOOL,4000234728,25000.00,Grants to educational establishments or not for profit organisations including other businesses
Department for Education,DEPARTMENT FOR EDUCATION,11/04/2016,Grants,Academies Delivery Group,GROVE JUNIOR SCHOOL,4000234729,25000.00,Grants to educational establishments or not for profit organisations including other businesses
Department for Education,DEPARTMENT FOR EDUCATION,11/04/2016,Grants,Academies Delivery Group,HAMWIC TRUST,4000234742,50000.00,Grants to educational establishments or not for profit organisations including other businesses
Department for Education,STANDARDS AND TESTING AGENCY,11/04/2016,Programme costs,Test Development Division,LEARN DIRECT,4000234752,29462.96,Funding to deliver policies (excluding consultancy) paid to third parties via a service delivery contract
Department for Education,DEPARTMENT FOR EDUCATION,11/04/2016,Grants,Academies Delivery Group,PETERBOROUGH DIOCESE EDUCATION TRUST,4000234755,60000.00,Grants to educational establishments or not for profit organisations including other businesses
Department for Education,DEPARTMENT FOR EDUCATION,11/04/2016,Grants,Office of the Schools Commissioner Group,ST GEORGES CHURCH OF ENGLAND SCHOOL,4000234759,58500.00,Grants to educational establishments or not for profit organisations including other businesses
Department for Education,DEPARTMENT FOR EDUCATION,06/04/2016,Professional Services Consultancy and Contingent Labour,Information Technology Group,METHODS CONSULTING LTD,4000234384,10500.00,Costs related to temporary workers
Department for Education,DEPARTMENT FOR EDUCATION,06/04/2016,Professional Services Consultancy and Contingent Labour,Information Technology Group,METHODS CONSULTING LTD,4000234384,36834.00,Costs related to temporary workers
Department for Education,NATIONAL COLLEGE FOR TEACHING AND LEADERSHIP AGENCY,05/04/2016,Professional Services Other,Operations Directorate,NABARRO LLP,4000234298,9687.60,"Fees / expenses of professionals, for example to implement advice or changes"
Department for Education,NATIONAL COLLEGE FOR TEACHING AND LEADERSHIP AGENCY,05/04/2016,Professional Services Other,Operations Directorate,NABARRO LLP,4000234298,17951.04,"Fees / expenses of professionals, for example to implement advice or changes"
Department for Education,DEPARTMENT FOR EDUCATION,11/04/2016,Professional Services Consultancy and Contingent Labour,Finance and Commercial Group,CAPITA BUSINESS SERVICES LTD,4000234763,2564.14,"Advisory services including fees, travel and expenses"
Department for Education,STANDARDS AND TESTING AGENCY,15/04/2016,Professional Services Other,Test Operations Division,NATIONAL FOUNDATION FOR EDUCATIONAL RESEARCH,4000235111,36250.79,"Fees / expenses of professionals, for example to implement advice or changes"
Department for Education,STANDARDS AND TESTING AGENCY,11/04/2016,Professional Services Consultancy and Contingent Labour,Standards and Testing Agency Admin,CAPITA BUSINESS SERVICES LTD,4000234763,856.87,"Advisory services including fees, travel and expenses"
Department for Education,DEPARTMENT FOR EDUCATION,11/04/2016,Grants,Academies Delivery Group,ENQUIRE LEARNING TRUST,4000234779,50000.00,Grants to educational establishments or not for profit organisations including other businesses
Department for Education,DEPARTMENT FOR EDUCATION,11/04/2016,Professional Services Consultancy and Contingent Labour,Information Technology Group,METHODS CONSULTING LTD,4000234714,7200.00,Costs related to temporary workers
Department for Education,DEPARTMENT FOR EDUCATION,11/04/2016,Professional Services Consultancy and Contingent Labour,Information Technology Group,METHODS CONSULTING LTD,4000234714,15120.00,Costs related to temporary workers
Department for Education,DEPARTMENT FOR EDUCATION,12/04/2016,Professional Services Consultancy and Contingent Labour,Information Technology Group,METHODS CONSULTING LTD,4000234794,42389.23,Costs related to temporary workers
Department for Education,DEPARTMENT FOR EDUCATION,12/04/2016,Professional Services Consultancy and Contingent Labour,Information Technology Group,METHODS CONSULTING LTD,4000234794,17448.00,Costs related to temporary workers
Department for Education,DEPARTMENT FOR EDUCATION,20/04/2016,Facilities,Property Asset Management Group,GVA GRIMLEY LTD,4000235448,462646.59,Business rates
Department for Education,DEPARTMENT FOR EDUCATION,12/04/2016,Grants,Academies Delivery Group,ST JOSEPHS RC PRIMARY SCHOOL,4000234803,25000.00,Grants to educational establishments or not for profit organisations including other businesses
Department for Education,DEPARTMENT FOR EDUCATION,12/04/2016,Grants,Academies Delivery Group,ST PAULS RC PRIMARY SCHOOL,4000234804,25000.00,Grants to educational establishments or not for profit organisations including other businesses
Department for Education,DEPARTMENT FOR EDUCATION,12/04/2016,Grants,Academies Delivery Group,HUISH ACADEMY TRUST,4000234811,25000.00,Grants to educational establishments or not for profit organisations including other businesses
Department for Education,DEPARTMENT FOR EDUCATION,12/04/2016,Grants,Academies Delivery Group,QUEENS MANOR PRIMARY SCHOOL,4000234812,75000.00,Grants to educational establishments or not for profit organisations including other businesses
Department for Education,DEPARTMENT FOR EDUCATION,12/04/2016,Grants,Academies Delivery Group,MINEHEAD FIRST SCHOOL,4000234813,25000.00,Grants to educational establishments or not for profit organisations including other businesses
Department for Education,DEPARTMENT FOR EDUCATION,12/04/2016,Grants,Academies Delivery Group,FIRSIDE JUNIOR SCHOOL,4000234814,25000.00,Grants to educational establishments or not for profit organisations including other businesses
Department for Education,DEPARTMENT FOR EDUCATION,12/04/2016,Grants,Academies Delivery Group,ST KATHERINES SCHOOL,4000234815,25000.00,Grants to educational establishments or not for profit organisations including other businesses
Department for Education,DEPARTMENT FOR EDUCATION,12/04/2016,Grants,Academies Delivery Group,STANWICK PRIMARY SCHOOL,4000234816,27000.00,Grants to educational establishments or not for profit organisations including other businesses
Department for Education,DEPARTMENT FOR EDUCATION,12/04/2016,Grants,Academies Delivery Group,LEASOWES PRIMARY SCHOOL,4000234823,25000.00,Grants to educational establishments or not for profit organisations including other businesses
Department for Education,DEPARTMENT FOR EDUCATION,12/04/2016,ICT,Information Technology Group,LOCKHEED MARTIN,4000234831,26171.57,ICT Services
Department for Education,DEPARTMENT FOR EDUCATION,12/04/2016,Grants,Office of the Schools Commissioner Group,THE SABDEN MULTI ACADEMY TRUST,4000234834,50000.00,Grants to educational establishments or not for profit organisations including other businesses
Department for Education,DEPARTMENT FOR EDUCATION,12/04/2016,Grants,Adoption and Children in Care Division,ADOPTION UK,4000234837,26000.00,Grants to educational establishments or not for profit organisations including other businesses
Department for Education,DEPARTMENT FOR EDUCATION,12/04/2016,Grants,Academies Delivery Group,WAKEFIELD CITY MULTI ACADEMIES TRUST,4000234851,25000.00,Grants to educational establishments or not for profit organisations including other businesses
Department for Education,DEPARTMENT FOR EDUCATION,12/04/2016,Grants,"Children's Services, Equalities and Communication Safeguarding Group",THE TAVISTOCK & PORTMAN NHS FOUNDATION TRUST,4000234858,128045.50,Grants to educational establishments or not for profit organisations including other businesses
Department for Education,DEPARTMENT FOR EDUCATION,12/04/2016,Grants,Academies Delivery Group,CONNECTED LEARNING,4000234859,70000.00,Grants to educational establishments or not for profit organisations including other businesses
Department for Education,DEPARTMENT FOR EDUCATION,12/04/2016,Grants,Academies Delivery Group,ENQUIRE LEARNING TRUST,4000234862,25000.00,Grants to educational establishments or not for profit organisations including other businesses
Department for Education,DEPARTMENT FOR EDUCATION,12/04/2016,Grants,"Children's Services, Equalities and Communication Safeguarding Group",NWG NETWORK,4000234866,40945.69,Grants to educational establishments or not for profit organisations including other businesses
Department for Education,DEPARTMENT FOR EDUCATION,12/04/2016,Grants,Academies Delivery Group,NETHERTHORPE SCHOOL,4000234871,25000.00,Grants to educational establishments or not for profit organisations including other businesses
Department for Education,DEPARTMENT FOR EDUCATION,05/04/2016,Professional Services Other,Finance and Commercial Group,RUSSAM GMS LTD,4000234347,8640.00,"Fees / expenses of professionals, for example to implement advice or changes"
Department for Education,DEPARTMENT FOR EDUCATION,13/04/2016,Grants,Academies Delivery Group,WOODSETTS PRIMARY SCHOOL,4000234902,25000.00,Grants to educational establishments or not for profit organisations including other businesses
Department for Education,DEPARTMENT FOR EDUCATION,12/04/2016,Professional Services Consultancy and Contingent Labour,Information Technology Group,METHODS CONSULTING LTD,4000234794,12000.00,Costs related to temporary workers
Department for Education,DEPARTMENT FOR EDUCATION,12/04/2016,Professional Services Consultancy and Contingent Labour,Information Technology Group,METHODS CONSULTING LTD,4000234794,13860.00,Costs related to temporary workers
Department for Education,DEPARTMENT FOR EDUCATION,13/04/2016,ICT,Information Technology Group,PROLOG,4000234914,11580.00,ICT Services
Department for Education,NATIONAL COLLEGE FOR TEACHING AND LEADERSHIP AGENCY,27/04/2016,Communications,Operations Directorate,CARAT,4000236000,17327.56,"Publicity, advertising, media advertising campaigns (excluding recruitment adverts)"
Department for Education,DEPARTMENT FOR EDUCATION,13/04/2016,ICT,Systems and Accountability Group,PROLOG,4000234914,55999.14,ICT Services
Department for Education,NATIONAL COLLEGE FOR TEACHING AND LEADERSHIP AGENCY,27/04/2016,Communications,Operations Directorate,CARAT,4000236000,899281.76,Marketing services
Department for Education,NATIONAL COLLEGE FOR TEACHING AND LEADERSHIP AGENCY,29/04/2016,Communications,Operations Directorate,CARAT,4000236189,38073.78,"Publicity, advertising, media advertising campaigns (excluding recruitment adverts)"
Department for Education,STANDARDS AND TESTING AGENCY,13/04/2016,Programme costs,Test Development Division,PROLOG,4000234914,780.00,Funding to deliver policies (excluding consultancy) paid to third parties via a service delivery contract
Department for Education,STANDARDS AND TESTING AGENCY,13/04/2016,Programme costs,Test Development Division,PROLOG,4000234914,1400.00,Funding to deliver policies (excluding consultancy) paid to third parties via a service delivery contract
Department for Education,STANDARDS AND TESTING AGENCY,13/04/2016,Programme costs,Test Development Division,PROLOG,4000234914,240.00,Funding to deliver policies (excluding consultancy) paid to third parties via a service delivery contract
Department for Education,STANDARDS AND TESTING AGENCY,13/04/2016,Print and Print Management,Test Operations Division,PROLOG,4000234914,21697.00,Printing and binding services
Department for Education,STANDARDS AND TESTING AGENCY,13/04/2016,Print and Print Management,Test Operations Division,PROLOG,4000234914,899731.99,Printing and binding services
Department for Education,NATIONAL COLLEGE FOR TEACHING AND LEADERSHIP AGENCY,13/04/2016,Office Solutions,Operations Directorate,PROLOG,4000234914,8525.00,Document Storage
Department for Education,NATIONAL COLLEGE FOR TEACHING AND LEADERSHIP AGENCY,13/04/2016,Office Solutions,Operations Directorate,PROLOG,4000234914,679.77,Document Storage
Department for Education,NATIONAL COLLEGE FOR TEACHING AND LEADERSHIP AGENCY,13/04/2016,Office Solutions,Operations Directorate,PROLOG,4000234914,611.89,Office Supplies
Department for Education,NATIONAL COLLEGE FOR TEACHING AND LEADERSHIP AGENCY,13/04/2016,Office Solutions,Operations Directorate,PROLOG,4000234914,141.10,Document Storage
Department for Education,NATIONAL COLLEGE FOR TEACHING AND LEADERSHIP AGENCY,13/04/2016,Programme costs,Operations Directorate,PROLOG,4000234914,310.81,Funding to deliver policies (excluding consultancy) paid to third parties via a service delivery contract
Department for Education,NATIONAL COLLEGE FOR TEACHING AND LEADERSHIP AGENCY,13/04/2016,Office Solutions,Operations Directorate,PROLOG,4000234914,17609.15,Post and courier services
Department for Education,DEPARTMENT FOR EDUCATION,13/04/2016,Grants,Academies Delivery Group,HILL TOP PRIMARY SCHOOL,4000234919,25000.00,Grants to educational establishments or not for profit organisations including other businesses
Department for Education,DEPARTMENT FOR EDUCATION,13/04/2016,Grants,Academies Delivery Group,AROW VALE RSA ACADEMY,4000234927,40000.00,Grants to educational establishments or not for profit organisations including other businesses
Department for Education,DEPARTMENT FOR EDUCATION,13/04/2016,Grants,Academies Delivery Group,OAKWORTH PRIMARY SCHOOL,4000234936,25000.00,Grants to educational establishments or not for profit organisations including other businesses
Department for Education,DEPARTMENT FOR EDUCATION,13/04/2016,Grants,Academies Delivery Group,WALDERSLADE PRIMARY SCHOOL,4000234937,25000.00,Grants to educational establishments or not for profit organisations including other businesses
Department for Education,DEPARTMENT FOR EDUCATION,13/04/2016,Grants,Academies Delivery Group,HOO ST WERBURGH PRIMARY & MARLBOROUGH CENTRE,4000234938,25000.00,Grants to educational establishments or not for profit organisations including other businesses
Department for Education,NATIONAL COLLEGE FOR TEACHING AND LEADERSHIP AGENCY,13/04/2016,Programme costs,Delivery Directorate,EDUCATION DEVELOPMENT TRUST,4000234944,146037.60,Funding to deliver policies (excluding consultancy) paid to third parties via a service delivery contract
Department for Education,DEPARTMENT FOR EDUCATION,13/04/2016,Grants,Academies Delivery Group,NORTHWOOD BROOM COMMUNITY SCHOOL,4000234945,95000.00,Grants to educational establishments or not for profit organisations including other businesses
Department for Education,DEPARTMENT FOR EDUCATION,13/04/2016,Professional Services Other,Strategic Analysis and Research Group,Payment to individual,4000234948,45925.00,Research and evaluation activities
Department for Education,DEPARTMENT FOR EDUCATION,13/04/2016,Grants,Academies Delivery Group,RIGHTFORSUCCESS TRUST,4000234957,80000.00,Grants to educational establishments or not for profit organisations including other businesses
Department for Education,DEPARTMENT FOR EDUCATION,13/04/2016,Programme costs,Adoption and Children in Care Division,CARERS TRUST,4000234961,130793.40,Funding to deliver policies (excluding consultancy) paid to third parties via a service delivery contract
Department for Education,DEPARTMENT FOR EDUCATION,13/04/2016,Grants,Academies Delivery Group,HAWORTH PRIMARY SCHOOL,4000234962,25000.00,Grants to educational establishments or not for profit organisations including other businesses
Department for Education,STANDARDS AND TESTING AGENCY,13/04/2016,Programme costs,Test Operations Division,EDEXCEL,4000234964,1162039.80,Funding to deliver policies (excluding consultancy) paid to third parties via a service delivery contract
Department for Education,DEPARTMENT FOR EDUCATION,13/04/2016,Grants,Academies Delivery Group,BARNFIELDS PRIMARY SCHOOL,4000234974,25000.00,Grants to educational establishments or not for profit organisations including other businesses
Department for Education,DEPARTMENT FOR EDUCATION,14/04/2016,Office Solutions,Information Technology Group,IRON MOUNTAIN (UK) LTD,4000234984,22668.91,Document Storage
Department for Education,DEPARTMENT FOR EDUCATION,14/04/2016,Grants,Government Equalities Office,CAMBRIDGESHIRE COUNTY COUNCIL,4000234988,30987.00,Grants to local authorities / other establishments within aggregate external funding or aggregate exchequer grant
Department for Education,DEPARTMENT FOR EDUCATION,14/04/2016,Grants,Office of the Schools Commissioner Group,ZEST MULTI ACADEMY TRUST,4000235013,50000.00,Grants to educational establishments or not for profit organisations including other businesses
Department for Education,DEPARTMENT FOR EDUCATION,14/04/2016,Grants,Office of the Schools Commissioner Group,CARMEL ACADEMY TRUST,4000235021,100000.00,Grants to educational establishments or not for profit organisations including other businesses
Department for Education,DEPARTMENT FOR EDUCATION,14/04/2016,Grants,Office of the Schools Commissioner Group,CRANMER EDUCATION TRUST,4000235022,25000.00,Grants to educational establishments or not for profit organisations including other businesses
Department for Education,DEPARTMENT FOR EDUCATION,14/04/2016,Grants,Office of the Schools Commissioner Group,FEVERSHAM EDUCATION TRUST,4000235023,50000.00,Grants to educational establishments or not for profit organisations including other businesses
Department for Education,DEPARTMENT FOR EDUCATION,14/04/2016,Grants,Office of the Schools Commissioner Group,MOOR END ACADEMIES TRUST,4000235025,100000.00,Grants to educational establishments or not for profit organisations including other businesses
Department for Education,DEPARTMENT FOR EDUCATION,14/04/2016,Grants,Office of the Schools Commissioner Group,ST PAULS CE PRIMARY SCHOOL ACADEMY TRUST,4000235033,50000.00,Grants to educational establishments or not for profit organisations including other businesses
Department for Education,DEPARTMENT FOR EDUCATION,14/04/2016,Grants,Office of the Schools Commissioner Group,TRINITY ACADEMY HALIFAX MULTI ACADEMY TRUST,4000235034,60000.00,Grants to educational establishments or not for profit organisations including other businesses
Department for Education,DEPARTMENT FOR EDUCATION,14/04/2016,Grants,Academies Delivery Group,ANSTON BROOK PRIMARY SCHOOL,4000235035,25000.00,Grants to educational establishments or not for profit organisations including other businesses
Department for Education,DEPARTMENT FOR EDUCATION,14/04/2016,Grants,Academies Delivery Group,BRINSWORTH WHITEHILL PRIMARY SCHOOL,4000235036,25000.00,Grants to educational establishments or not for profit organisations including other businesses
Department for Education,DEPARTMENT FOR EDUCATION,14/04/2016,Grants,Academies Delivery Group,SWINTON QUEEN PRIMARY SCHOOL,4000235037,25000.00,Grants to educational establishments or not for profit organisations including other businesses
Department for Education,DEPARTMENT FOR EDUCATION,14/04/2016,Grants,Academies Delivery Group,ASTON HALL JUNIOR & INFANT SCHOOL,4000235038,25000.00,Grants to educational establishments or not for profit organisations including other businesses
Department for Education,DEPARTMENT FOR EDUCATION,14/04/2016,Grants,Academies Delivery Group,ASTON LODGE PRIMARY SCHOOL,4000235039,25000.00,Grants to educational establishments or not for profit organisations including other businesses
Department for Education,DEPARTMENT FOR EDUCATION,14/04/2016,Grants,Office of the Schools Commissioner Group,GOSFORTH FEDERATED ACADEMIES LTD,4000235040,100000.00,Grants to educational establishments or not for profit organisations including other businesses
Department for Education,DEPARTMENT FOR EDUCATION,06/04/2016,Professional Services Other,Finance and Commercial Group,RUSSAM GMS LTD,4000234366,9120.00,"Fees / expenses of professionals, for example to implement advice or changes"
Department for Education,DEPARTMENT FOR EDUCATION,14/04/2016,Grants,Academies Delivery Group,HILLTOP SCHOOL,4000235044,75000.00,Grants to educational establishments or not for profit organisations including other businesses
Department for Education,DEPARTMENT FOR EDUCATION,14/04/2016,Grants,Children's Services Special Educational Needs Group,THE LONDON LEADERSHIP STRATEGY,4000235045,53238.97,Grants to educational establishments or not for profit organisations including other businesses
Department for Education,DEPARTMENT FOR EDUCATION,14/04/2016,Programme costs,Government Equalities Office,SITEL UK LTD,4000235049,176531.16,Funding to deliver policies (excluding consultancy) paid to third parties via a service delivery contract
Department for Education,DEPARTMENT FOR EDUCATION,13/04/2016,Professional Services Consultancy and Contingent Labour,Information Technology Group,METHODS CONSULTING LTD,4000234906,49762.80,Costs related to temporary workers
Department for Education,DEPARTMENT FOR EDUCATION,14/04/2016,Grants,Academies Delivery Group,DERBY DIOCESAN ACADEMY TRUST,4000235057,25000.00,Grants to educational establishments or not for profit organisations including other businesses
Department for Education,DEPARTMENT FOR EDUCATION,20/04/2016,Facilities,Property Asset Management Group,GVA GRIMLEY LTD DCLG,4000235399,407399.00,"Business rates. From 2016/17 financial year DCLG and DECC will use the DfE's finance system, reflecting the shared services arrangement for property asset management that already exists across the three departments. DfE will recharge DCLG and DECC on a quarterly basis."
Department for Education,DEPARTMENT FOR EDUCATION,14/04/2016,Grants,Academies Delivery Group,COMMUNITY INCLUSIVE TRUST,4000235064,50000.00,Grants to educational establishments or not for profit organisations including other businesses
Department for Education,DEPARTMENT FOR EDUCATION,13/04/2016,Professional Services Consultancy and Contingent Labour,Information Technology Group,METHODS CONSULTING LTD,4000234906,12801.60,Costs related to temporary workers
Department for Education,DEPARTMENT FOR EDUCATION,04/04/2016,Professional Services Consultancy and Contingent Labour,Information Technology Group,RUSSAM GMS LTD,4000233957,44612.38,Costs related to temporary workers
Department for Education,DEPARTMENT FOR EDUCATION,14/04/2016,Programme costs,"Children's Services, Equalities and Communication Safeguarding Group",DAISY BOGG CONSULTANCY,4000235077,38169.78,Funding to deliver policies (excluding consultancy) paid to third parties via a service delivery contract
Department for Education,DEPARTMENT FOR EDUCATION,14/04/2016,Grants,Children's Services Special Educational Needs Group,IN CONTROL PARTNERSHIPS,4000235082,26408.94,Grants to educational establishments or not for profit organisations including other businesses
Department for Education,DEPARTMENT FOR EDUCATION,14/04/2016,Grants,Adoption and Children in Care Division,AFTER ADOPTION,4000235084,109794.48,Grants to educational establishments or not for profit organisations including other businesses
Department for Education,DEPARTMENT FOR EDUCATION,14/04/2016,Grants,Academies Delivery Group,THE ELLIOT FOUNDATION ACADEMIES TRUST,4000235085,70000.00,Grants to educational establishments or not for profit organisations including other businesses
Department for Education,DEPARTMENT FOR EDUCATION,14/04/2016,Professional Services Other,Strategic Analysis and Research Group,IMPROVEMENT & DEVELOPMENT AGENCY FOR LOCAL GOVERN,4000235086,40000.00,Research and evaluation activities
Department for Education,DEPARTMENT FOR EDUCATION,14/04/2016,Grants,Academies Delivery Group,NETHERTHORPE SCHOOL,4000235087,75000.00,Grants to educational establishments or not for profit organisations including other businesses
Department for Education,DEPARTMENT FOR EDUCATION,15/04/2016,Grants,Academies Delivery Group,TIMBERCROFT PRIMARY SCHOOL,4000235093,25000.00,Grants to educational establishments or not for profit organisations including other businesses
Department for Education,DEPARTMENT FOR EDUCATION,15/04/2016,Grants,Academies Delivery Group,LEES PRIMARY SCHOOL,4000235094,25000.00,Grants to educational establishments or not for profit organisations including other businesses
Department for Education,NATIONAL COLLEGE FOR TEACHING AND LEADERSHIP AGENCY,15/04/2016,ICT,Operations Directorate,CAPRICORN VENTIS LTD,4000235095,109780.26,ICT Hardware
Department for Education,DEPARTMENT FOR EDUCATION,15/04/2016,Grants,Academies Delivery Group,MILLENNIUM PRIMARY SCHOOL,4000235097,100000.00,Grants to educational establishments or not for profit organisations including other businesses
Department for Education,DEPARTMENT FOR EDUCATION,15/04/2016,Grants,Academies Delivery Group,BROOKLANDS PRIMARY SCHOOL,4000235098,25000.00,Grants to educational establishments or not for profit organisations including other businesses
Department for Education,NATIONAL COLLEGE FOR TEACHING AND LEADERSHIP AGENCY,15/04/2016,Programme costs,Operations Directorate,SPEAKEASY PRODUCTIONS LTD,4000235099,34354.56,Funding to deliver policies (excluding consultancy) paid to third parties via a service delivery contract
Department for Education,NATIONAL COLLEGE FOR TEACHING AND LEADERSHIP AGENCY,07/04/2016,Professional Services Other,Delivery Directorate,TELEPERFORMANCE LTD,4000234428,58895.00,"Fees / expenses of professionals, for example to implement advice or changes"
Department for Education,DEPARTMENT FOR EDUCATION,15/04/2016,Grants,Office of the Schools Commissioner Group,CARILLION ACADEMIES TRUST,4000235104,25000.00,Grants to educational establishments or not for profit organisations including other businesses
Department for Education,NATIONAL COLLEGE FOR TEACHING AND LEADERSHIP AGENCY,08/04/2016,Professional Services Other,Delivery Directorate,TELEPERFORMANCE LTD,4000234637,354063.96,"Fees / expenses of professionals, for example to implement advice or changes"
Department for Education,DEPARTMENT FOR EDUCATION,15/04/2016,Grants,Academies Delivery Group,CHIPSTEAD VALLEY ACADEMY TRUST,4000235113,70000.00,Grants to educational establishments or not for profit organisations including other businesses
Department for Education,NATIONAL COLLEGE FOR TEACHING AND LEADERSHIP AGENCY,18/04/2016,Communications,Operations Directorate,INFERNO LTD,4000235177,32340.50,"Publicity, advertising, media advertising campaigns (excluding recruitment adverts)"
Department for Education,NATIONAL COLLEGE FOR TEACHING AND LEADERSHIP AGENCY,08/04/2016,Professional Services Other,Delivery Directorate,TELEPERFORMANCE LTD,4000234637,2919.54,"Fees / expenses of professionals, for example to implement advice or changes"
Department for Education,NATIONAL COLLEGE FOR TEACHING AND LEADERSHIP AGENCY,08/04/2016,Professional Services Other,Delivery Directorate,TELEPERFORMANCE LTD,4000234637,12412.43,"Fees / expenses of professionals, for example to implement advice or changes"
Department for Education,DEPARTMENT FOR EDUCATION,15/04/2016,Professional Services Other,"Children's Services, Equalities and Communication Safeguarding Group",TNS BMRB,4000235117,59869.20,Research and evaluation activities
Department for Education,DEPARTMENT FOR EDUCATION,15/04/2016,Grants,Academies Delivery Group,BRADFORD DIOCESAN ACADEMIES TRUST,4000235118,50000.00,Grants to educational establishments or not for profit organisations including other businesses
Department for Education,DEPARTMENT FOR EDUCATION,15/04/2016,Grants,Academies Delivery Group,NETHERTHORPE SCHOOL,4000235119,70000.00,Grants to educational establishments or not for profit organisations including other businesses
Department for Education,DEPARTMENT FOR EDUCATION,15/04/2016,Facilities,International Education Group,EUROPEAN SCHOOL CULHAM,4000235136,102599.28,Business rates
Department for Education,DEPARTMENT FOR EDUCATION,15/04/2016,Grants,Office of the Schools Commissioner Group,COMBERTON ACADEMY TRUST,4000235143,62500.00,Grants to educational establishments or not for profit organisations including other businesses
Department for Education,DEPARTMENT FOR EDUCATION,18/04/2016,Grants,Academies Delivery Group,PRIORY FIELDS SCHOOL,4000235150,25000.00,Grants to educational establishments or not for profit organisations including other businesses
Department for Education,DEPARTMENT FOR EDUCATION,18/04/2016,Grants,Academies Delivery Group,GREAT CHART PRIMARY SCHOOL,4000235151,25000.00,Grants to educational establishments or not for profit organisations including other businesses
Department for Education,DEPARTMENT FOR EDUCATION,18/04/2016,Grants,Academies Delivery Group,ST ANNES CATHOLIC PRIMARY SCHOOL,4000235152,25000.00,Grants to educational establishments or not for profit organisations including other businesses
Department for Education,DEPARTMENT FOR EDUCATION,18/04/2016,Grants,Academies Delivery Group,ST CHARLES BORROMEO CATHOLIC PRIMARY SCHOOL,4000235153,25000.00,Grants to educational establishments or not for profit organisations including other businesses
Department for Education,DEPARTMENT FOR EDUCATION,18/04/2016,Grants,Academies Delivery Group,WENTWORTH COFE JUNIOR & INFANT SCHOOL,4000235156,27000.00,Grants to educational establishments or not for profit organisations including other businesses
Department for Education,DEPARTMENT FOR EDUCATION,18/04/2016,Grants,Free School Group,SFTN SCHOOL,4000235161,60000.00,Grants to educational establishments or not for profit organisations including other businesses
Department for Education,DEPARTMENT FOR EDUCATION,04/04/2016,Professional Services Consultancy and Contingent Labour,Information Technology Group,RUSSAM GMS LTD,4000233957,10260.00,Costs related to temporary workers
Department for Education,DEPARTMENT FOR EDUCATION,05/04/2016,Professional Services Consultancy and Contingent Labour,Information Technology Group,RUSSAM GMS LTD,4000234347,3937.56,Costs related to temporary workers
Department for Education,DEPARTMENT FOR EDUCATION,18/04/2016,Grants,Children's Services Special Educational Needs Group,THE PACE CENTRE LTD,4000235166,60080.26,Grants to educational establishments or not for profit organisations including other businesses
Department for Education,DEPARTMENT FOR EDUCATION,05/04/2016,Facilities,Property Asset Management Group,INTERSERVE FACILITIES MANAGEMENT LTD,4000234337,242158.58,"Building maintenance and repair, including repainting, replacing flooring, etc."
Department for Education,DEPARTMENT FOR EDUCATION,18/04/2016,Grants,Academies Delivery Group,COLLINGWOOD PRIMARY SCHOOL,4000235174,25000.00,Grants to educational establishments or not for profit organisations including other businesses
Department for Education,NATIONAL COLLEGE FOR TEACHING AND LEADERSHIP AGENCY,18/04/2016,Communications,Operations Directorate,INFERNO LTD,4000235177,39344.69,"Publicity, advertising, media advertising campaigns (excluding recruitment adverts)"
Department for Education,NATIONAL COLLEGE FOR TEACHING AND LEADERSHIP AGENCY,18/04/2016,Communications,Delivery Directorate,INFERNO LTD,4000235177,36032.47,"Publicity, advertising, media advertising campaigns (excluding recruitment adverts)"
Department for Education,NATIONAL COLLEGE FOR TEACHING AND LEADERSHIP AGENCY,19/04/2016,Communications,Operations Directorate,INFERNO LTD,4000235269,5586.00,"Publicity, advertising, media advertising campaigns (excluding recruitment adverts)"
Department for Education,DEPARTMENT FOR EDUCATION,18/04/2016,Grants,"Children's Services, Equalities and Communication Safeguarding Group",TBAP TRUST,4000235179,473473.40,Grants to educational establishments or not for profit organisations including other businesses
Department for Education,DEPARTMENT FOR EDUCATION,18/04/2016,Grants,Academies Delivery Group,ST PETERS CEVA FIRST SCHOOL,4000235181,25000.00,Grants to educational establishments or not for profit organisations including other businesses
Department for Education,DEPARTMENT FOR EDUCATION,18/04/2016,Grants,"Children's Services, Equalities and Communication Safeguarding Group",THE FOSTERING NETWORK,4000235184,228219.28,Grants to educational establishments or not for profit organisations including other businesses
Department for Education,DEPARTMENT FOR EDUCATION,18/04/2016,Grants,"Assessment, Curriculum and General Qualifications Group",UNIVERSITY OF CAMBRIDGE,4000235185,127577.23,Grants to educational establishments or not for profit organisations including other businesses
Department for Education,DEPARTMENT FOR EDUCATION,18/04/2016,Grants,"Children's Services, Equalities and Communication Safeguarding Group",WEST SUSSEX COUNTY COUNCIL,4000235190,39632.91,Grants to local authorities / other establishments within aggregate external funding or aggregate exchequer grant
Department for Education,DEPARTMENT FOR EDUCATION,18/04/2016,Grants,Academies Delivery Group,ST AUGUSTINE'S CATHOLIC PRIMARY SCHOOL,4000235191,25000.00,Grants to educational establishments or not for profit organisations including other businesses
Department for Education,DEPARTMENT FOR EDUCATION,18/04/2016,Travel,International Education Group,ST JOHN THE BAPTIST SCHOOL,4000235192,252.70,Re-imbursement of travel expenses for one member of school staff to attend a meeting at the Department for Education.
Department for Education,DEPARTMENT FOR EDUCATION,18/04/2016,Grants,Academies Delivery Group,ST JOHN THE BAPTIST SCHOOL,4000235192,25000.00,Grants to educational establishments or not for profit organisations including other businesses
Department for Education,DEPARTMENT FOR EDUCATION,18/04/2016,Grants,Academies Delivery Group,THE KEMNAL ACADEMIES TRUST,4000235208,25000.00,Grants to educational establishments or not for profit organisations including other businesses
Department for Education,DEPARTMENT FOR EDUCATION,18/04/2016,Facilities,Property Asset Management Group,INTERSERVE FACILITIES MANAGEMENT LTD,4000235173,74636.77,"Building maintenance and repair, including repainting, replacing flooring, etc."
Department for Education,DEPARTMENT FOR EDUCATION,19/04/2016,Facilities,Property Asset Management Group,INTERSERVE FACILITIES MANAGEMENT LTD,4000235259,33772.22,Property management
Department for Education,DEPARTMENT FOR EDUCATION,18/04/2016,Grants,Academies Delivery Group,OAKFIELD COMMUNITY PRIMARY SCHOOL,4000235214,25000.00,Grants to educational establishments or not for profit organisations including other businesses
Department for Education,DEPARTMENT FOR EDUCATION,18/04/2016,Grants,Children's Services Special Educational Needs Group,ROYAL COLLEGE OF SPEECH & LANGUAGE THERAPISTS,4000235225,46375.97,Grants to educational establishments or not for profit organisations including other businesses
Department for Education,DEPARTMENT FOR EDUCATION,19/04/2016,Programme costs,"Children's Services, Equalities and Communication Safeguarding Group",KPMG LLP,4000235234,261644.12,Funding to deliver policies (excluding consultancy) paid to third parties via a service delivery contract
Department for Education,DEPARTMENT FOR EDUCATION,19/04/2016,Professional Services Other,Early Years Group,HM REVENUE & CUSTOMS,4000235241,556007.00,Payment for resource costs incurred in February 2016 required for HMRC to develop a joint application and eligibility checking application (JOCA) for the planned extension of free hours childcare entitlement using HMRC's tax-free childcare infrastructure. The Department for Education have an agreement with HMRC to cover the resource costs for this work.
Department for Education,DEPARTMENT FOR EDUCATION,19/04/2016,Grants,Academies Delivery Group,LEARNING IN HARMONY TRUST,4000235242,60000.00,Grants to educational establishments or not for profit organisations including other businesses
Department for Education,NATIONAL COLLEGE FOR TEACHING AND LEADERSHIP AGENCY,19/04/2016,Communications,Operations Directorate,INFERNO LTD,4000235269,19091.06,"Publicity, advertising, media advertising campaigns (excluding recruitment adverts)"
Department for Education,DEPARTMENT FOR EDUCATION,19/04/2016,Grants,Academies Delivery Group,HAMSTEL INFANT SCHOOL & NURSERY,4000235247,100000.00,Grants to educational establishments or not for profit organisations including other businesses
Department for Education,DEPARTMENT FOR EDUCATION,19/04/2016,Grants,Academies Delivery Group,WORCESTER DIOCESAN ACADEMIES TRUST,4000235253,75000.00,Grants to educational establishments or not for profit organisations including other businesses
Department for Education,DEPARTMENT FOR EDUCATION,21/04/2016,Facilities,Property Asset Management Group,INTERSERVE FACILITIES MANAGEMENT LTD,4000235532,29715.64,"Building maintenance and repair, including repainting, replacing flooring, etc."
Department for Education,NATIONAL COLLEGE FOR TEACHING AND LEADERSHIP AGENCY,15/04/2016,Professional Services Other,Delivery Directorate,TELEPERFORMANCE LTD,4000235115,452852.66,"Fees / expenses of professionals, for example to implement advice or changes"
Department for Education,DEPARTMENT FOR EDUCATION,15/04/2016,Communications,Communications Group,NLA MEDIA ACCESS LTD,4000235096,91492.96,Marketing services
Department for Education,DEPARTMENT FOR EDUCATION,13/04/2016,Communications,Information Technology Group,PROLOG,4000234914,2922.00,Digital media and web production
Department for Education,DEPARTMENT FOR EDUCATION,13/04/2016,Communications,Communications Group,PROLOG,4000234914,14422.80,Marketing services - printing and publication
Department for Education,DEPARTMENT FOR EDUCATION,19/04/2016,Programme costs,"Children's Services, Equalities and Communication Safeguarding Group",DAISY BOGG CONSULTANCY,4000235274,34351.68,Funding to deliver policies (excluding consultancy) paid to third parties via a service delivery contract
Department for Education,DEPARTMENT FOR EDUCATION,19/04/2016,Grants,Academies Delivery Group,GISLINGHAM CEVCP SCHOOL,4000235284,80000.00,Grants to educational establishments or not for profit organisations including other businesses
Department for Education,DEPARTMENT FOR EDUCATION,19/04/2016,Grants,Adoption and Children in Care Division,TAVISTOCK CENTRE FOR COUPLE RELATIONSHIPS,4000235288,43926.61,Grants to educational establishments or not for profit organisations including other businesses
Department for Education,DEPARTMENT FOR EDUCATION,19/04/2016,Grants,Children's Services Strategy Group,FAMILY RIGHTS GROUP LTD,4000235289,81045.00,Grants to educational establishments or not for profit organisations including other businesses
Department for Education,DEPARTMENT FOR EDUCATION,19/04/2016,Grants,"Assessment, Curriculum and General Qualifications Group",ENTHUSE CHARITABLE TRUST,4000235290,685000.00,Grants to educational establishments or not for profit organisations including other businesses
Department for Education,DEPARTMENT FOR EDUCATION,19/04/2016,Programme costs,"Assessment, Curriculum and General Qualifications Group",MYSCIENCE CO LTD,4000235291,79809.97,Funding to deliver policies (excluding consultancy) paid to third parties via a service delivery contract
Department for Education,DEPARTMENT FOR EDUCATION,19/04/2016,Grants,Academies Delivery Group,LEE CHAPEL ACADEMY TRUST - TS ACCOUNT,4000235310,45000.00,Grants to educational establishments or not for profit organisations including other businesses
Department for Education,DEPARTMENT FOR EDUCATION,19/04/2016,Grants,Academies Delivery Group,WATERVILLE PRIMARY SCHOOL,4000235319,27000.00,Grants to educational establishments or not for profit organisations including other businesses
Department for Education,DEPARTMENT FOR EDUCATION,19/04/2016,Grants,Children's Services Strategy Group,RELATE,4000235325,64125.00,Grants to educational establishments or not for profit organisations including other businesses
Department for Education,DEPARTMENT FOR EDUCATION,19/04/2016,Grants,Academies Delivery Group,TEMPLE HILL COMMUNITY PRIMARY SCHOOL,4000235333,25000.00,Grants to educational establishments or not for profit organisations including other businesses
Department for Education,DEPARTMENT FOR EDUCATION,19/04/2016,Grants,Free School Group,FAIR ACCESS SCHOOLS TRUST,4000235334,66000.00,Grants to educational establishments or not for profit organisations including other businesses
Department for Education,DEPARTMENT FOR EDUCATION,19/04/2016,Grants,Academies Delivery Group,PERCY MAIN PRIMARY SCHOOL,4000235336,27000.00,Grants to educational establishments or not for profit organisations including other businesses
Department for Education,DEPARTMENT FOR EDUCATION,20/04/2016,Programme costs,Teachers and Teaching Group,CAPITA LIFE & PENSIONS SERVICES LTD,4000235342,1128269.61,Contract payment to deliver the administration of the Teachers' Pension Scheme.
Department for Education,DEPARTMENT FOR EDUCATION,13/04/2016,Communications,Information Technology Group,PROLOG,4000234914,37219.98,Digital media and web production
Department for Education,DEPARTMENT FOR EDUCATION,20/04/2016,ICT,Information Technology Group,BYTES SOFTWARE SERVICE,4000235398,25380.00,ICT Software
Department for Education,DEPARTMENT FOR EDUCATION,22/04/2016,Facilities,Property Asset Management Group,INTERSERVE FACILITIES MANAGEMENT LTD,4000235574,41577.22,Property management
Department for Education,DEPARTMENT FOR EDUCATION,14/04/2016,Facilities,Property Asset Management Group,MACE LTD,4000235059,284210.40,Programme management for construction work
Department for Education,STANDARDS AND TESTING AGENCY,20/04/2016,Programme costs,Test Development Division,GWASG PIA CYF,4000235423,30000.00,Funding to deliver policies (excluding consultancy) paid to third parties via a service delivery contract
Department for Education,STANDARDS AND TESTING AGENCY,20/04/2016,Programme costs,Test Development Division,NFER,4000235425,194107.09,Funding to deliver policies (excluding consultancy) paid to third parties via a service delivery contract
Department for Education,DEPARTMENT FOR EDUCATION,13/04/2016,Communications,Information Technology Group,PROLOG,4000234914,106573.93,Digital media and web production
Department for Education,DEPARTMENT FOR EDUCATION,05/04/2016,Professional Services Consultancy and Contingent Labour,Information Technology Group,RUSSAM GMS LTD,4000234347,12599.40,Costs related to temporary workers
Department for Education,DEPARTMENT FOR EDUCATION,06/04/2016,Professional Services Consultancy and Contingent Labour,Information Technology Group,RUSSAM GMS LTD,4000234366,20352.00,Costs related to temporary workers
Department for Education,DEPARTMENT FOR EDUCATION,14/04/2016,Professional Services Consultancy and Contingent Labour,Information Technology Group,RUSSAM GMS LTD,4000235075,78980.37,Costs related to temporary workers
Department for Education,DEPARTMENT FOR EDUCATION,20/04/2016,ICT,Finance and Commercial Group,SHARED SERVICES CONNECTED LTD,4000235440,35568.00,ICT Software
Department for Education,DEPARTMENT FOR EDUCATION,20/04/2016,Professional Services Other,Finance and Commercial Group,SHARED SERVICES CONNECTED LTD,4000235440,-7293.70,Shared corporate accounting services
Department for Education,DEPARTMENT FOR EDUCATION,20/04/2016,Professional Services Other,Finance and Commercial Group,SHARED SERVICES CONNECTED LTD,4000235440,706.17,Shared corporate payroll services
Department for Education,STANDARDS AND TESTING AGENCY,20/04/2016,Programme costs,Test Operations Division,EDEXCEL,4000235441,3080996.20,Funding to deliver policies (excluding consultancy) paid to third parties via a service delivery contract
Department for Education,NATIONAL COLLEGE FOR TEACHING AND LEADERSHIP AGENCY,28/04/2016,Professional Services Other,Operations Directorate,TELEPERFORMANCE LTD,4000236147,1560.00,"Fees / expenses of professionals, for example to implement advice or changes"
Department for Education,DEPARTMENT FOR EDUCATION,21/04/2016,Grants,Academies Delivery Group,PRESTON COFE VC PRIMARY SCHOOL,4000235457,25000.00,Grants to educational establishments or not for profit organisations including other businesses
Department for Education,DEPARTMENT FOR EDUCATION,21/04/2016,Grants,Academies Delivery Group,BARNSLEY METROPOLITAN BOROUGH COUNCIL,4000235466,204797.00,Grants to educational establishments or not for profit organisations including other businesses
Department for Education,DEPARTMENT FOR EDUCATION,21/04/2016,Grants,Free School Group,NEW SCHOOLS NETWORK,4000235470,334744.92,Grants to educational establishments or not for profit organisations including other businesses
Department for Education,DEPARTMENT FOR EDUCATION,21/04/2016,Grants,Office of the Schools Commissioner Group,KITE ACADEMY TRUST,4000235473,50000.00,Grants to educational establishments or not for profit organisations including other businesses
Department for Education,DEPARTMENT FOR EDUCATION,21/04/2016,Grants,Academies Delivery Group,ST HUGH OF LINCOLN CATHOLIC PRIMARY SCHOOL,4000235475,25000.00,Grants to educational establishments or not for profit organisations including other businesses
Department for Education,DEPARTMENT FOR EDUCATION,21/04/2016,Grants,Academies Delivery Group,THE ROSELAND COMMUNITY COLLEGE,4000235476,82000.00,Grants to educational establishments or not for profit organisations including other businesses
Department for Education,DEPARTMENT FOR EDUCATION,21/04/2016,Grants,Academies Delivery Group,BERKELEY PRIMARY SCHOOL,4000235481,25000.00,Grants to educational establishments or not for profit organisations including other businesses
Department for Education,DEPARTMENT FOR EDUCATION,21/04/2016,Grants,Academies Delivery Group,BADGER HILL PRIMARY SCHOOL,4000235482,27000.00,Grants to educational establishments or not for profit organisations including other businesses
Department for Education,DEPARTMENT FOR EDUCATION,21/04/2016,Grants,Academies Delivery Group,HAMSTEL JUNIOR SCHOOL,4000235483,25000.00,Grants to educational establishments or not for profit organisations including other businesses
Department for Education,DEPARTMENT FOR EDUCATION,21/04/2016,Grants,Academies Delivery Group,TEMPLE SUTTON PRIMARY SCHOOL,4000235484,25000.00,Grants to educational establishments or not for profit organisations including other businesses
Department for Education,DEPARTMENT FOR EDUCATION,21/04/2016,Grants,Academies Delivery Group,VICTORIA ROAD PRIMARY SCHOOL,4000235492,25000.00,Grants to educational establishments or not for profit organisations including other businesses
Department for Education,DEPARTMENT FOR EDUCATION,21/04/2016,Grants,Academies Delivery Group,TWO VALLEYS FEDERATION,4000235493,150000.00,Grants to educational establishments or not for profit organisations including other businesses
Department for Education,DEPARTMENT FOR EDUCATION,21/04/2016,Grants,Academies Delivery Group,RIVERSIDE PRIMARY SCHOOL,4000235496,27000.00,Grants to educational establishments or not for profit organisations including other businesses
Department for Education,DEPARTMENT FOR EDUCATION,21/04/2016,Grants,Office of the Schools Commissioner Group,NORTHAMPTON PRIMARY ACADEMY TRUST,4000235497,55588.00,Grants to educational establishments or not for profit organisations including other businesses
Department for Education,DEPARTMENT FOR EDUCATION,21/04/2016,Grants,Vocational Qualifications Division,SUSSEX DOWNS COLLEGE,4000235504,35124.64,Grants to educational establishments or not for profit organisations including other businesses
Department for Education,DEPARTMENT FOR EDUCATION,21/04/2016,Grants,Adoption and Children in Care Division,CORAM CAMBRIDGESHIRE ADOPTION LTD,4000235506,27000.00,Grants to local authorities / other establishments within aggregate external funding or aggregate exchequer grant
Department for Education,NATIONAL COLLEGE FOR TEACHING AND LEADERSHIP AGENCY,28/04/2016,Professional Services Other,Delivery Directorate,TELEPERFORMANCE LTD,4000236147,442170.76,"Fees / expenses of professionals, for example to implement advice or changes"
Department for Education,DEPARTMENT FOR EDUCATION,21/04/2016,Grants,Academies Delivery Group,SALISBURY PLAIN,4000235522,80000.00,Grants to educational establishments or not for profit organisations including other businesses
Department for Education,DEPARTMENT FOR EDUCATION,21/04/2016,Grants,System Reform Group,EDUCATION & EMPLOYERS TASKFORCE,4000235523,75000.00,Grants to educational establishments or not for profit organisations including other businesses
Department for Education,DEPARTMENT FOR EDUCATION,21/04/2016,Grants,"Children's Services, Equalities and Communication Safeguarding Group",SAFE FAMILIES FOR CHILDREN,4000235526,157014.00,Grants to educational establishments or not for profit organisations including other businesses
Department for Education,DEPARTMENT FOR EDUCATION,21/04/2016,Grants,Academies Delivery Group,WATERTON ACADEMY TRUST,4000235528,25000.00,Grants to educational establishments or not for profit organisations including other businesses
Department for Education,DEPARTMENT FOR EDUCATION,21/04/2016,Grants,Academies Delivery Group,THE EVELEIGH LINK ACADEMY TRUST,4000235529,45000.00,Grants to educational establishments or not for profit organisations including other businesses
Department for Education,DEPARTMENT FOR EDUCATION,21/04/2016,Professional Services Other,Strategic Analysis and Research Group,NATIONAL FOUNDATION FOR EDUCATIONAL RESEARCH,4000235530,69623.00,Research and evaluation activities
Department for Education,DEPARTMENT FOR EDUCATION,12/04/2016,Facilities,Property Asset Management Group,METHODS CONSULTING LTD,4000234794,11788.80,Property management
Department for Education,DEPARTMENT FOR EDUCATION,21/04/2016,Professional Services Other,Adoption and Children in Care Division,UNIVERSITY OF BRISTOL,4000235533,4709.00,Research and evaluation activities
Department for Education,DEPARTMENT FOR EDUCATION,21/04/2016,Professional Services Other,"Children's Services, Equalities and Communication Safeguarding Group",UNIVERSITY OF BRISTOL,4000235533,51562.00,Research and evaluation activities
Department for Education,DEPARTMENT FOR EDUCATION,21/04/2016,Grants,Academies Delivery Group,BRIDGE MULTI ACADEMY TRUST,4000235538,227000.00,Grants to educational establishments or not for profit organisations including other businesses
Department for Education,DEPARTMENT FOR EDUCATION,21/04/2016,Grants,Academies Delivery Group,THE ADELAIDE ACADEMY TRUST,4000235540,70000.00,Grants to educational establishments or not for profit organisations including other businesses
Department for Education,DEPARTMENT FOR EDUCATION,21/04/2016,Grants,Academies Delivery Group,BRISTOL CHURCH ACADEMIES TRUST,4000235548,25000.00,Grants to educational establishments or not for profit organisations including other businesses
Department for Education,DEPARTMENT FOR EDUCATION,21/04/2016,Programme costs,"Assessment, Curriculum and General Qualifications Group",IOP INSTITUTE OF PHYSICS,4000235552,255673.68,Funding to deliver policies (excluding consultancy) paid to third parties via a service delivery contract
Department for Education,NATIONAL COLLEGE FOR TEACHING AND LEADERSHIP AGENCY,21/04/2016,Grants,Operations Directorate,IOP INSTITUTE OF PHYSICS,4000235552,12790.02,Grants to educational establishments or not for profit organisations including other businesses
Department for Education,DEPARTMENT FOR EDUCATION,21/04/2016,Grants,Character and Disadvantage Division,CADET VOCATIONAL QUALIFICATIONS ORGANISATION LTD,4000235553,86581.47,Grants to educational establishments or not for profit organisations including other businesses
Department for Education,DEPARTMENT FOR EDUCATION,13/04/2016,Communications,Ministerial and Public Communications Group,PROLOG,4000234914,79149.70,Digital media and web production
Department for Education,DEPARTMENT FOR EDUCATION,21/04/2016,Grants,Character and Disadvantage Division,CHALLENGER TROOP,4000235558,83173.22,Grants to educational establishments or not for profit organisations including other businesses
Department for Education,DEPARTMENT FOR EDUCATION,21/04/2016,Grants,Character and Disadvantage Division,KSA EDUCATION & TRAINING,4000235559,42525.82,Grants to educational establishments or not for profit organisations including other businesses
Department for Education,DEPARTMENT FOR EDUCATION,21/04/2016,Grants,Character and Disadvantage Division,COMMANDO JOES,4000235560,70995.70,Grants to educational establishments or not for profit organisations including other businesses
Department for Education,DEPARTMENT FOR EDUCATION,21/04/2016,Grants,Office of the Schools Commissioner Group,SPONNE SCHOOL,4000235562,30438.00,Grants to educational establishments or not for profit organisations including other businesses
Department for Education,DEPARTMENT FOR EDUCATION,21/04/2016,Grants,Academies Delivery Group,UNITED LEARNING TRUST,4000235570,40000.00,Capital grants paid to an educational institution
Department for Education,DEPARTMENT FOR EDUCATION,21/04/2016,Grants,Academies Delivery Group,KINGDOWN SCHOOL,4000235571,25000.00,Grants to educational establishments or not for profit organisations including other businesses
Department for Education,DEPARTMENT FOR EDUCATION,21/04/2016,Grants,"Assessment, Curriculum and General Qualifications Group",SPORT ENGLAND,4000235572,92000.00,Grants to educational establishments or not for profit organisations including other businesses
Department for Education,DEPARTMENT FOR EDUCATION,21/04/2016,Grants,System Reform Group,SCHOOL GOVERNORS ONE STOP SHOP,4000235573,164349.00,Grants to educational establishments or not for profit organisations including other businesses
Department for Education,DEPARTMENT FOR EDUCATION,18/04/2016,Facilities,Property Asset Management Group,METHODS CONSULTING LTD,4000235212,77740.33,Property management
Department for Education,DEPARTMENT FOR EDUCATION,22/04/2016,Grants,Education Funding Group,LOCAL PARTNERSHIPS LLP,4000235576,36521.24,Grants to educational establishments or not for profit organisations including other businesses
Department for Education,DEPARTMENT FOR EDUCATION,22/04/2016,Grants,Academies Delivery Group,COLLINGWOOD PRIMARY SCHOOL,4000235584,85000.00,Grants to educational establishments or not for profit organisations including other businesses
Department for Education,DEPARTMENT FOR EDUCATION,22/04/2016,Grants,"Children's Services, Equalities and Communication Safeguarding Group",PACE,4000235596,55040.16,Grants to educational establishments or not for profit organisations including other businesses
Department for Education,DEPARTMENT FOR EDUCATION,22/04/2016,Grants,System Reform Group,EAST SUSSEX COUNTY COUNCIL,4000235598,40608.00,Grants to local authorities / other establishments within aggregate external funding or aggregate exchequer grant
Department for Education,DEPARTMENT FOR EDUCATION,22/04/2016,Grants,System Reform Group,NORFOLK COUNTY COUNCIL,4000235603,58008.00,Grants to local authorities / other establishments within aggregate external funding or aggregate exchequer grant
Department for Education,DEPARTMENT FOR EDUCATION,22/04/2016,Grants,System Reform Group,SOMERSET COUNTY COUNCIL,4000235605,29842.00,Grants to local authorities / other establishments within aggregate external funding or aggregate exchequer grant
Department for Education,DEPARTMENT FOR EDUCATION,22/04/2016,Grants,System Reform Group,NORTHAMPTONSHIRE COUNTY COUNCIL,4000235613,29933.00,Grants to local authorities / other establishments within aggregate external funding or aggregate exchequer grant
Department for Education,DEPARTMENT FOR EDUCATION,22/04/2016,Grants,System Reform Group,LINCOLNSHIRE COUNTY COUNCIL,4000235614,55150.00,Grants to local authorities / other establishments within aggregate external funding or aggregate exchequer grant
Department for Education,DEPARTMENT FOR EDUCATION,22/04/2016,Grants,System Reform Group,GLOUCESTERSHIRE COUNTY COUNCIL,4000235621,35142.00,Grants to local authorities / other establishments within aggregate external funding or aggregate exchequer grant
Department for Education,DEPARTMENT FOR EDUCATION,22/04/2016,Grants,System Reform Group,CORNWALL COUNCIL,4000235623,42792.00,Grants to local authorities / other establishments within aggregate external funding or aggregate exchequer grant
Department for Education,DEPARTMENT FOR EDUCATION,22/04/2016,Grants,System Reform Group,NORTH YORKSHIRE COUNTY COUNCIL,4000235629,26233.00,Grants to local authorities / other establishments within aggregate external funding or aggregate exchequer grant
Department for Education,DEPARTMENT FOR EDUCATION,22/04/2016,Grants,System Reform Group,NOTTINGHAMSHIRE COUNTY COUNCIL,4000235638,32875.00,Grants to local authorities / other establishments within aggregate external funding or aggregate exchequer grant
Department for Education,DEPARTMENT FOR EDUCATION,22/04/2016,Grants,System Reform Group,LANCASHIRE COUNTY COUNCIL,4000235650,50442.00,Grants to local authorities / other establishments within aggregate external funding or aggregate exchequer grant
Department for Education,DEPARTMENT FOR EDUCATION,22/04/2016,Grants,System Reform Group,KENT COUNTY COUNCIL,4000235652,104167.00,Grants to local authorities / other establishments within aggregate external funding or aggregate exchequer grant
Department for Education,DEPARTMENT FOR EDUCATION,22/04/2016,Grants,System Reform Group,WORCESTERSHIRE COUNTY COUNCIL,4000235653,27075.00,Grants to local authorities / other establishments within aggregate external funding or aggregate exchequer grant
Department for Education,DEPARTMENT FOR EDUCATION,22/04/2016,Grants,System Reform Group,ESSEX COUNTY COUNCIL,4000235665,50025.00,Grants to local authorities / other establishments within aggregate external funding or aggregate exchequer grant
Department for Education,DEPARTMENT FOR EDUCATION,22/04/2016,Grants,System Reform Group,DEVON COUNTY COUNCIL,4000235677,40775.00,Grants to local authorities / other establishments within aggregate external funding or aggregate exchequer grant
Department for Education,DEPARTMENT FOR EDUCATION,22/04/2016,Grants,Academies Delivery Group,NEW YORK PRIMARY SCHOOL,4000235682,25000.00,Grants to educational establishments or not for profit organisations including other businesses
Department for Education,DEPARTMENT FOR EDUCATION,22/04/2016,Grants,System Reform Group,SUFFOLK COUNTY COUNCIL,4000235686,42375.00,Grants to local authorities / other establishments within aggregate external funding or aggregate exchequer grant
Department for Education,DEPARTMENT FOR EDUCATION,22/04/2016,Grants,System Reform Group,CAMBRIDGESHIRE COUNTY COUNCIL,4000235691,38842.00,Grants to local authorities / other establishments within aggregate external funding or aggregate exchequer grant
Department for Education,DEPARTMENT FOR EDUCATION,22/04/2016,Grants,Academies Delivery Group,TOPCLIFFE PRIMARY SCHOOL,4000235701,25000.00,Grants to educational establishments or not for profit organisations including other businesses
Department for Education,DEPARTMENT FOR EDUCATION,22/04/2016,Grants,Academies Delivery Group,SALESIAN SCHOOL,4000235712,25000.00,Grants to educational establishments or not for profit organisations including other businesses
Department for Education,DEPARTMENT FOR EDUCATION,22/04/2016,Grants,Academies Delivery Group,SULIVAN PRIMARY SCHOOL,4000235716,25000.00,Grants to educational establishments or not for profit organisations including other businesses
Department for Education,DEPARTMENT FOR EDUCATION,22/04/2016,Grants,Academies Delivery Group,ST ALBANS CATHOLIC PRIMARY SCHOOL,4000235717,25000.00,Grants to educational establishments or not for profit organisations including other businesses
Department for Education,DEPARTMENT FOR EDUCATION,22/04/2016,Grants,Academies Delivery Group,HOLY FAMILY CATHOLIC PRIMARY SCHOOL,4000235718,25000.00,Grants to educational establishments or not for profit organisations including other businesses
Department for Education,DEPARTMENT FOR EDUCATION,22/04/2016,Grants,Academies Delivery Group,DEAN OAKS PRIMARY SCHOOL,4000235719,25000.00,Grants to educational establishments or not for profit organisations including other businesses
Department for Education,DEPARTMENT FOR EDUCATION,22/04/2016,Grants,Academies Delivery Group,ALEXANDRA INFANTS SCHOOOL,4000235720,25000.00,Grants to educational establishments or not for profit organisations including other businesses
Department for Education,NATIONAL COLLEGE FOR TEACHING AND LEADERSHIP AGENCY,13/04/2016,Communications,Operations Directorate,PROLOG,4000234914,1122.00,Digital media and web production
Department for Education,DEPARTMENT FOR EDUCATION,22/04/2016,Grants,Academies Delivery Group,UNDERWOOD WEST PRIMARY SCHOOL,4000235736,25000.00,Grants to educational establishments or not for profit organisations including other businesses
Department for Education,DEPARTMENT FOR EDUCATION,22/04/2016,Grants,Academies Delivery Group,LUMEN LEARNING TRUST,4000235739,25000.00,Grants to educational establishments or not for profit organisations including other businesses
Department for Education,DEPARTMENT FOR EDUCATION,22/04/2016,Grants,System Reform Group,WEST SUSSEX COUNTY COUNCIL,4000235760,32367.00,Grants to local authorities / other establishments within aggregate external funding or aggregate exchequer grant
Department for Education,DEPARTMENT FOR EDUCATION,22/04/2016,Grants,Government Equalities Office,LEEDS CITY COUNCIL,4000235765,41403.82,Grants to local authorities / other establishments within aggregate external funding or aggregate exchequer grant
Department for Education,DEPARTMENT FOR EDUCATION,22/04/2016,Grants,System Reform Group,LEEDS CITY COUNCIL,4000235765,9800.00,Grants to local authorities / other establishments within aggregate external funding or aggregate exchequer grant
Department for Education,DEPARTMENT FOR EDUCATION,22/04/2016,Grants,System Reform Group,LEICESTERSHIRE COUNTY COUNCIL,4000235769,29592.00,Grants to local authorities / other establishments within aggregate external funding or aggregate exchequer grant
Department for Education,DEPARTMENT FOR EDUCATION,22/04/2016,Grants,System Reform Group,HAMPSHIRE COUNTY COUNCIL,4000235772,33458.00,Grants to local authorities / other establishments within aggregate external funding or aggregate exchequer grant
Department for Education,DEPARTMENT FOR EDUCATION,22/04/2016,Grants,Children's Services Special Educational Needs Group,ADVOCACY  MATTERS,4000235775,33841.43,Grants to educational establishments or not for profit organisations including other businesses
Department for Education,DEPARTMENT FOR EDUCATION,22/04/2016,Grants,Children's Services Special Educational Needs Group,THE DOVE SERVICE LTD,4000235777,41702.41,Grants to educational establishments or not for profit organisations including other businesses
Department for Education,DEPARTMENT FOR EDUCATION,22/04/2016,Grants,System Reform Group,DURHAM COUNTY COUNCIL,4000235785,81800.00,Grants to local authorities / other establishments within aggregate external funding or aggregate exchequer grant
Department for Education,DEPARTMENT FOR EDUCATION,22/04/2016,Grants,Academies Delivery Group,INTERSERVE ACADEMIES TRUST,4000235790,80000.00,Grants to educational establishments or not for profit organisations including other businesses
Department for Education,DEPARTMENT FOR EDUCATION,22/04/2016,Grants,System Reform Group,DORSET COUNTY COUNCIL,4000235797,31783.00,Grants to local authorities / other establishments within aggregate external funding or aggregate exchequer grant
Department for Education,DEPARTMENT FOR EDUCATION,22/04/2016,Grants,System Reform Group,DERBYSHIRE COUNTY COUNCIL,4000235799,66250.00,Grants to local authorities / other establishments within aggregate external funding or aggregate exchequer grant
Department for Education,DEPARTMENT FOR EDUCATION,25/04/2016,Grants,Academies Delivery Group,ASH GROVE ACADEMY,4000235801,80000.00,Grants to educational establishments or not for profit organisations including other businesses
Department for Education,DEPARTMENT FOR EDUCATION,25/04/2016,Grants,"Children's Services, Equalities and Communication Safeguarding Group",STOCKPORT MBC,4000235807,33839.36,Grants to local authorities / other establishments within aggregate external funding or aggregate exchequer grant
Department for Education,DEPARTMENT FOR EDUCATION,18/04/2016,Facilities,Property Asset Management Group,METHODS CONSULTING LTD,4000235212,18648.00,Programme management for construction work
Department for Education,DEPARTMENT FOR EDUCATION,25/04/2016,Grants,Adoption and Children in Care Division,CORAM,4000235809,56526.73,Grants to educational establishments or not for profit organisations including other businesses
Department for Education,DEPARTMENT FOR EDUCATION,25/04/2016,Grants,Children's Services Special Educational Needs Group,KIDS UNLTD,4000235813,93736.48,Grants to educational establishments or not for profit organisations including other businesses
Department for Education,DEPARTMENT FOR EDUCATION,25/04/2016,ICT,Information Technology Group,CAPGEMINI UK PLC,4000235819,93603.62,ICT Services
Department for Education,DEPARTMENT FOR EDUCATION,25/04/2016,ICT,Systems and Accountability Group,CAPGEMINI UK PLC,4000235819,196309.91,ICT Services
Department for Education,DEPARTMENT FOR EDUCATION,25/04/2016,Grants,Academies Delivery Group,ALEXANRA JUNIOR SCHOOL,4000235825,25000.00,Grants to educational establishments or not for profit organisations including other businesses
Department for Education,DEPARTMENT FOR EDUCATION,25/04/2016,Programme costs,Post 16 and Disadvantage Group,ATKINS LTD,4000235830,80191.80,Funding to deliver policies (excluding consultancy) paid to third parties via a service delivery contract
Department for Education,DEPARTMENT FOR EDUCATION,25/04/2016,ICT,Information Technology Group,REDWEB,4000235835,172734.00,ICT Services
Department for Education,DEPARTMENT FOR EDUCATION,25/04/2016,Grants,Academies Delivery Group,ST BARTHOLOMEWS CE PRIMARY SCHOOL,4000235843,25000.00,Grants to educational establishments or not for profit organisations including other businesses
Department for Education,DEPARTMENT FOR EDUCATION,25/04/2016,Grants,Academies Delivery Group,HEMPLAND PRIMARY SCHOOL,4000235844,25000.00,Grants to educational establishments or not for profit organisations including other businesses
Department for Education,DEPARTMENT FOR EDUCATION,25/04/2016,Grants,Academies Delivery Group,WAVENEY VALLEY PARTNERSHIP,4000235845,85000.00,Grants to educational establishments or not for profit organisations including other businesses
Department for Education,DEPARTMENT FOR EDUCATION,25/04/2016,Grants,Academies Delivery Group,BLURTON PRIMARY SCHOOL,4000235849,25000.00,Grants to educational establishments or not for profit organisations including other businesses
Department for Education,DEPARTMENT FOR EDUCATION,25/04/2016,Programme costs,"Assessment, Curriculum and General Qualifications Group",EDUCATION DEVELOPMENT TRUST,4000235854,244143.60,Funding to deliver policies (excluding consultancy) paid to third parties via a service delivery contract
Department for Education,DEPARTMENT FOR EDUCATION,25/04/2016,Programme costs,Adoption and Children in Care Division,CORAM,4000235855,31453.47,Funding to deliver policies (excluding consultancy) paid to third parties via a service delivery contract
Department for Education,DEPARTMENT FOR EDUCATION,21/04/2016,Facilities,Property Asset Management Group,SODEXO LTD,4000235521,128822.45,"Building maintenance and repair, including repainting, replacing flooring, etc."
Department for Education,DEPARTMENT FOR EDUCATION,25/04/2016,Grants,Adoption and Children in Care Division,THE SHARE FOUNDATION 3RD PARTY TRUST,4000235861,85400.00,Grants to educational establishments or not for profit organisations including other businesses
Department for Education,DEPARTMENT FOR EDUCATION,25/04/2016,Grants,Children's Services Special Educational Needs Group,ROYAL COLLEGE OF PAEDIATRICS & CHILD HEALTH RCPCH,4000235862,145677.00,Grants to educational establishments or not for profit organisations including other businesses
Department for Education,NATIONAL COLLEGE FOR TEACHING AND LEADERSHIP AGENCY,25/04/2016,Professional Services Other,Operations Directorate,BLAKE MORGAN,4000235865,27800.00,Legal services provided externally (excluding Treasury Solicitor) 
Department for Education,DEPARTMENT FOR EDUCATION,25/04/2016,Facilities,Property Asset Management Group,SODEXO LTD,4000235860,21200.00,"Building maintenance and repair, including repainting, replacing flooring, etc."
Department for Education,DEPARTMENT FOR EDUCATION,25/04/2016,Grants,Academies Delivery Group,ST MARYS COFE VA PRIMARY SCHOOL,4000235875,75000.00,Grants to educational establishments or not for profit organisations including other businesses
Department for Education,DEPARTMENT FOR EDUCATION,26/04/2016,Grants,Academies Delivery Group,NOTRE DAME HIGH SCHOOL,4000235901,80000.00,Grants to educational establishments or not for profit organisations including other businesses
Department for Education,NATIONAL COLLEGE FOR TEACHING AND LEADERSHIP AGENCY,28/04/2016,Professional Services Other,Delivery Directorate,TELEPERFORMANCE LTD,4000236147,1864.74,"Fees / expenses of professionals, for example to implement advice or changes"
Department for Education,DEPARTMENT FOR EDUCATION,26/04/2016,Professional Services Consultancy and Contingent Labour,Human Resources Group,CAPGEMINI UK PLC,4000235903,580.00,"Fees / expenses of professionals such as auditors, accountants, lawyers, etc. engaged to provide advice or opinion on how to affect something"
Department for Education,NATIONAL COLLEGE FOR TEACHING AND LEADERSHIP AGENCY,26/04/2016,Grants,Delivery Directorate,SOUTHGATE SCHOOL,4000235913,27000.00,Grants to educational establishments or not for profit organisations including other businesses
Department for Education,DEPARTMENT FOR EDUCATION,26/04/2016,Grants,Academies Delivery Group,HARBOURSIDE LEARNING PARTNERSHIP,4000235925,150000.00,Grants to educational establishments or not for profit organisations including other businesses
Department for Education,DEPARTMENT FOR EDUCATION,26/04/2016,Grants,Academies Delivery Group,BOLTON IMPACT TRUST,4000235927,70000.00,Grants to educational establishments or not for profit organisations including other businesses
Department for Education,DEPARTMENT FOR EDUCATION,26/04/2016,Grants,Academies Delivery Group,BOLTON IMPACT TRUST,4000235927,100000.00,Grants to educational establishments or not for profit organisations including other businesses
Department for Education,NATIONAL COLLEGE FOR TEACHING AND LEADERSHIP AGENCY,26/04/2016,Grants,Delivery Directorate,AMPLEFORTH COLLEGE,4000235928,60000.00,Grants to educational establishments or not for profit organisations including other businesses
Department for Education,NATIONAL COLLEGE FOR TEACHING AND LEADERSHIP AGENCY,26/04/2016,Grants,Delivery Directorate,CHILTON PRIMARY SCHOOL,4000235938,60000.00,Grants to educational establishments or not for profit organisations including other businesses
Department for Education,DEPARTMENT FOR EDUCATION,14/04/2016,Professional Services Consultancy and Contingent Labour,Information Technology Group,RUSSAM GMS LTD,4000235075,10665.08,Costs related to temporary workers
Department for Education,DEPARTMENT FOR EDUCATION,14/04/2016,Professional Services Other,Academies Delivery Group,VEREDUS TA CAPITA RESOURCING LTD,4000235043,34902.84,"Fees / expenses of professionals, for example to implement advice or changes"
Department for Education,DEPARTMENT FOR EDUCATION,26/04/2016,Professional Services Consultancy and Contingent Labour,Finance and Commercial Group,CAPITA BUSINESS SERVICES LTD,4000235942,3216.06,"Advisory services including fees, travel and expenses"
Department for Education,DEPARTMENT FOR EDUCATION,26/04/2016,Personnel Related,Human Resources Group,CAPITA BUSINESS SERVICES LTD,4000235942,104671.80,"Personnel costs including staff recruitment, staff restaurant subsidies, family care expenses"
Department for Education,DEPARTMENT FOR EDUCATION,20/04/2016,Professional Services Consultancy and Contingent Labour,Information Technology Group,RUSSAM GMS LTD,4000235439,60863.62,Costs related to temporary workers
Department for Education,DEPARTMENT FOR EDUCATION,26/04/2016,Grants,Academies Delivery Group,TRURO & PENWITH ACADEMY TRUST,4000235945,147000.00,Grants to educational establishments or not for profit organisations including other businesses
Department for Education,DEPARTMENT FOR EDUCATION,26/04/2016,Grants,Academies Delivery Group,ELSTON HALL PRIMARY SCHOOL,4000235946,25000.00,Grants to educational establishments or not for profit organisations including other businesses
Department for Education,DEPARTMENT FOR EDUCATION,27/04/2016,Programme costs,Teachers and Teaching Group,GOVERNMENT ACTUARYS DEPARTMENT,4000235947,44285.48,Funding to deliver policies (excluding consultancy) paid to third parties via a service delivery contract
Department for Education,DEPARTMENT FOR EDUCATION,27/04/2016,Grants,Government Equalities Office,THE STONEWALL GROUP LTD,4000235949,144523.21,Grants to educational establishments or not for profit organisations including other businesses
Department for Education,DEPARTMENT FOR EDUCATION,20/04/2016,Facilities,Property Asset Management Group,UNIVERSITY OF NOTTINGHAM,4000235406,36985.92,Rent
Department for Education,DEPARTMENT FOR EDUCATION,27/04/2016,Grants,Vocational Qualifications Division,BIRKENHEAD SIXTH FORM COLLEGE,4000235977,36237.00,Grants to educational establishments or not for profit organisations including other businesses
Department for Education,DEPARTMENT FOR EDUCATION,27/04/2016,Grants,Post 16 and Disadvantage Group,BIRMINGHAM EDUCATION PARTNERSHIP,4000235981,70000.00,Grants to educational establishments or not for profit organisations including other businesses
Department for Education,DEPARTMENT FOR EDUCATION,27/04/2016,Grants,Government Equalities Office,ANNE FRANK TRUST,4000235984,35280.00,Grants to educational establishments or not for profit organisations including other businesses
Department for Education,DEPARTMENT FOR EDUCATION,27/04/2016,Miscellaneous Expenditure,Children's Services Special Educational Needs Group,HMCTS HM COURTS & TRIBUNALS SERVICE,4000235985,188601.00,Tribunals and trials service fees
Department for Education,DEPARTMENT FOR EDUCATION,27/04/2016,Grants,Children's Services Strategy Group,FAMILY LIVES,4000235987,40506.32,Grants to educational establishments or not for profit organisations including other businesses
Department for Education,STANDARDS AND TESTING AGENCY,27/04/2016,Programme costs,Test Development Division,GWASG PIA CYF,4000235988,57118.00,Funding to deliver policies (excluding consultancy) paid to third parties via a service delivery contract
Department for Education,DEPARTMENT FOR EDUCATION,27/04/2016,Grants,Adoption and Children in Care Division,THE SHARE FOUNDATION 3RD PARTY TRUST,4000235991,51800.00,Grants to educational establishments or not for profit organisations including other businesses
Department for Education,DEPARTMENT FOR EDUCATION,27/04/2016,Grants,Academies Delivery Group,GREET PRIMARY SCHOOL,4000235992,50000.00,Grants to educational establishments or not for profit organisations including other businesses
Department for Education,STANDARDS AND TESTING AGENCY,27/04/2016,Programme costs,Test Development Division,LEARN DIRECT,4000235993,65524.00,Funding to deliver policies (excluding consultancy) paid to third parties via a service delivery contract
Department for Education,STANDARDS AND TESTING AGENCY,27/04/2016,Programme costs,Test Development Division,RNIB,4000235995,134205.00,Funding to deliver policies (excluding consultancy) paid to third parties via a service delivery contract
Department for Education,DEPARTMENT FOR EDUCATION,27/04/2016,Grants,Academies Delivery Group,PETERBOROUGH DIOCESE EDUCATION TRUST,4000235998,50000.00,Grants to educational establishments or not for profit organisations including other businesses
Department for Education,NATIONAL COLLEGE FOR TEACHING AND LEADERSHIP AGENCY,28/04/2016,Communications,Operations Directorate,TELEPERFORMANCE LTD,4000236147,2529.25,Marketing services - printing and publication
Department for Education,DEPARTMENT FOR EDUCATION,05/04/2016,Professional Services Other,Education Funding Group,SOFTWARE FOR DATA ANALYSIS LTD,4000234285,50000.00,Research and evaluation activities
Department for Education,DEPARTMENT FOR EDUCATION,27/04/2016,Grants,Children's Services Strategy Group,CORAM CLC,4000236001,25504.08,Grants to educational establishments or not for profit organisations including other businesses
Department for Education,DEPARTMENT FOR EDUCATION,27/04/2016,Grants,Academies Delivery Group,WATERTON ACADEMY TRUST,4000236002,25000.00,Grants to educational establishments or not for profit organisations including other businesses
Department for Education,DEPARTMENT FOR EDUCATION,27/04/2016,Grants,Children's Services Special Educational Needs Group,IN CONTROL PARTNERSHIPS,4000236016,26355.87,Grants to educational establishments or not for profit organisations including other businesses
Department for Education,DEPARTMENT FOR EDUCATION,27/04/2016,Grants,Academies Delivery Group,THE SIR JOHN COLFOX ACADEMY,4000236017,75000.00,Grants to educational establishments or not for profit organisations including other businesses
Department for Education,DEPARTMENT FOR EDUCATION,27/04/2016,Programme costs,Teachers and Teaching Group,CAPITA LIFE & PENSIONS SERVICES LTD,4000236018,27830.43,Contract payment to deliver the administration of the Teachers' Pension Scheme.
Department for Education,DEPARTMENT FOR EDUCATION,27/04/2016,Programme costs,Adoption and Children in Care Division,CORAM,4000236020,115674.75,Funding to deliver policies (excluding consultancy) paid to third parties via a service delivery contract
Department for Education,DEPARTMENT FOR EDUCATION,27/04/2016,Grants,Academies Delivery Group,COCKERTON CE PRIMARY SCHOOL,4000236025,50000.00,Grants to educational establishments or not for profit organisations including other businesses
Department for Education,DEPARTMENT FOR EDUCATION,27/04/2016,Grants,Adoption and Children in Care Division,CAMBRIDGE EDUCATION,4000236030,1500000.00,Grants to educational establishments or not for profit organisations including other businesses
Department for Education,DEPARTMENT FOR EDUCATION,27/04/2016,Grants,"Children's Services, Equalities and Communication Safeguarding Group",LONDON BOROUGH OF WALTHAM FOREST COUNCIL,4000236031,30000.00,Grants to local authorities / other establishments within aggregate external funding or aggregate exchequer grant
Department for Education,DEPARTMENT FOR EDUCATION,27/04/2016,Programme costs,"Assessment, Curriculum and General Qualifications Group",MYSCIENCE CO LTD,4000236033,704177.69,Funding to deliver policies (excluding consultancy) paid to third parties via a service delivery contract
Department for Education,DEPARTMENT FOR EDUCATION,27/04/2016,Grants,Academies Delivery Group,SHOEBURYNESS HIGH SCHOOL,4000236034,75000.00,Grants to educational establishments or not for profit organisations including other businesses
Department for Education,DEPARTMENT FOR EDUCATION,28/04/2016,Grants,Early Years Group,BRITISH ASSOC FOR EARLY CHILDHOOD EDUCATION,4000236047,27107.69,Grants to educational establishments or not for profit organisations including other businesses
Department for Education,DEPARTMENT FOR EDUCATION,28/04/2016,Grants,Government Equalities Office,EDUCATIONAL ACTION CHALLENGING HOMOPHOBIA,4000236048,72643.82,Grants to educational establishments or not for profit organisations including other businesses
Department for Education,DEPARTMENT FOR EDUCATION,28/04/2016,Grants,Academies Delivery Group,PATES GRAMMAR SCHOOL,4000236061,75000.00,Grants to educational establishments or not for profit organisations including other businesses
Department for Education,DEPARTMENT FOR EDUCATION,28/04/2016,Grants,Academies Delivery Group,THEDWASTRE EDUCATION TRUST,4000236100,80000.00,Grants to educational establishments or not for profit organisations including other businesses
Department for Education,DEPARTMENT FOR EDUCATION,28/04/2016,Grants,Academies Delivery Group,ST JOHNS C OF E A PRIMARY SCHOOL,4000236107,25000.00,Grants to educational establishments or not for profit organisations including other businesses
Department for Education,DEPARTMENT FOR EDUCATION,28/04/2016,Grants,Academies Delivery Group,WAVENEY VALLEY PARTNERSHIP,4000236108,50000.00,Grants to educational establishments or not for profit organisations including other businesses
Department for Education,DEPARTMENT FOR EDUCATION,28/04/2016,Grants,Academies Delivery Group,GLEBELAND COMMUNITY PRIMARY SCHOOL,4000236109,25000.00,Grants to educational establishments or not for profit organisations including other businesses
Department for Education,DEPARTMENT FOR EDUCATION,28/04/2016,Grants,Office of the Schools Commissioner Group,THE THREE SAINTS ACADEMY TRUST,4000236110,50000.00,Grants to educational establishments or not for profit organisations including other businesses
Department for Education,DEPARTMENT FOR EDUCATION,28/04/2016,Grants,Academies Delivery Group,MANOR MULTI ACADEMY TRUST,4000236119,70000.00,Grants to educational establishments or not for profit organisations including other businesses
Department for Education,DEPARTMENT FOR EDUCATION,28/04/2016,Professional Services Other,Communications Group,YOUGOV,4000236120,71820.00,Research and evaluation activities
Department for Education,DEPARTMENT FOR EDUCATION,28/04/2016,Grants,Government Equalities Office,SHOW RACISM THE RED CARD,4000236132,38489.37,Grants to educational establishments or not for profit organisations including other businesses
Department for Education,DEPARTMENT FOR EDUCATION,28/04/2016,Grants,Government Equalities Office,DIVERSITY ROLE MODELS,4000236133,57057.45,Grants to educational establishments or not for profit organisations including other businesses
Department for Education,DEPARTMENT FOR EDUCATION,28/04/2016,Grants,"Children's Services, Equalities and Communication Safeguarding Group",MATCH FOSTER CARE,4000236134,169036.00,Grants to educational establishments or not for profit organisations including other businesses
Department for Education,DEPARTMENT FOR EDUCATION,28/04/2016,Grants,Government Equalities Office,BARNARDOS,4000236137,81107.00,Grants to educational establishments or not for profit organisations including other businesses
Department for Education,DEPARTMENT FOR EDUCATION,28/04/2016,Professional Services Other,Finance and Commercial Group,SHARED SERVICES CONNECTED LTD,4000236145,210491.32,Shared corporate accounting services
Department for Education,NATIONAL COLLEGE FOR TEACHING AND LEADERSHIP AGENCY,28/04/2016,Programme costs,Operations Directorate,TELEPERFORMANCE LTD,4000236147,3545.23,Funding to deliver policies (excluding consultancy) paid to third parties via a service delivery contract
Department for Education,NATIONAL COLLEGE FOR TEACHING AND LEADERSHIP AGENCY,28/04/2016,Office Solutions,Operations Directorate,TELEPERFORMANCE LTD,4000236147,8170.72,Post and courier services
Department for Education,DEPARTMENT FOR EDUCATION,15/04/2016,Professional Services Other,Academies Delivery Group,WESTMOOR INTERNATIONAL,4000235102,33973.14,"Fees / expenses of professionals, for example to implement advice or changes"
Department for Education,DEPARTMENT FOR EDUCATION,05/04/2016,Communications,Communications Group,THE EDGE PICTURE COMPANY,4000234321,77731.20,Marketing services
Department for Education,DEPARTMENT FOR EDUCATION,08/04/2016,Professional Services Other,Finance and Commercial Group,WILLIS GROUP,4000234622,108.00,"Fees / expenses of professionals, for example to implement advice or changes"
Department for Education,DEPARTMENT FOR EDUCATION,08/04/2016,Professional Services Other,Finance and Commercial Group,WILLIS GROUP,4000234622,127344.00,"Fees / expenses of professionals, for example to implement advice or changes"
Department for Education,DEPARTMENT FOR EDUCATION,29/04/2016,Professional Services Other,Strategic Analysis and Research Group,THE ECONOMIC AND SOCIAL RESEARCH COUNCIL,4000236171,250000.00,Research and evaluation activities
Department for Education,NATIONAL COLLEGE FOR TEACHING AND LEADERSHIP AGENCY,21/04/2016,Communications,Operations Directorate,UCAS MEDIA LTD,4000235556,38644.00,"Publicity, advertising, media advertising campaigns (excluding recruitment adverts)"
Department for Education,DEPARTMENT FOR EDUCATION,29/04/2016,Programme costs,Adoption and Children in Care Division,CATCH 22,4000236190,109904.95,Funding to deliver policies (excluding consultancy) paid to third parties via a service delivery contract
Department for Education,DEPARTMENT FOR EDUCATION,29/04/2016,Grants,"Children's Services, Equalities and Communication Safeguarding Group",NORFOLK COUNTY COUNCIL,4000236194,31000.00,Grants to local authorities / other establishments within aggregate external funding or aggregate exchequer grant
Department for Education,DEPARTMENT FOR EDUCATION,29/04/2016,Grants,"Children's Services, Equalities and Communication Safeguarding Group",SOMERSET COUNTY COUNCIL,4000236196,62066.76,Grants to local authorities / other establishments within aggregate external funding or aggregate exchequer grant
Department for Education,DEPARTMENT FOR EDUCATION,29/04/2016,Grants,"Children's Services, Equalities and Communication Safeguarding Group",HERTFORDSHIRE,4000236198,79983.41,Grants to local authorities / other establishments within aggregate external funding or aggregate exchequer grant
Department for Education,DEPARTMENT FOR EDUCATION,20/04/2016,Professional Services Consultancy and Contingent Labour,Information Technology Group,RUSSAM GMS LTD,4000235439,6708.00,Costs related to temporary workers
Department for Education,DEPARTMENT FOR EDUCATION,20/04/2016,Professional Services Consultancy and Contingent Labour,Information Technology Group,RUSSAM GMS LTD,4000235439,29506.80,Costs related to temporary workers
Department for Education,DEPARTMENT FOR EDUCATION,29/04/2016,Grants,"Children's Services, Equalities and Communication Safeguarding Group",LANCASHIRE COUNTY COUNCIL,4000236221,35166.70,Grants to local authorities / other establishments within aggregate external funding or aggregate exchequer grant
Department for Education,DEPARTMENT FOR EDUCATION,29/04/2016,Grants,"Children's Services, Equalities and Communication Safeguarding Group",CAMBRIDGESHIRE COUNTY COUNCIL,4000236232,59633.42,Grants to local authorities / other establishments within aggregate external funding or aggregate exchequer grant
Department for Education,DEPARTMENT FOR EDUCATION,29/04/2016,Grants,"Children's Services, Equalities and Communication Safeguarding Group",BRACKNELL FOREST BOROUGH COUNCIL,4000236240,28816.71,Grants to local authorities / other establishments within aggregate external funding or aggregate exchequer grant
Department for Education,DEPARTMENT FOR EDUCATION,29/04/2016,Grants,"Children's Services, Equalities and Communication Safeguarding Group",STOKE ON TRENT CITY COUNCIL,4000236242,89233.46,Grants to local authorities / other establishments within aggregate external funding or aggregate exchequer grant
Department for Education,DEPARTMENT FOR EDUCATION,29/04/2016,Grants,"Children's Services, Equalities and Communication Safeguarding Group",NORTH TYNESIDE,4000236259,42116.73,Grants to local authorities / other establishments within aggregate external funding or aggregate exchequer grant
Department for Education,DEPARTMENT FOR EDUCATION,29/04/2016,Grants,"Children's Services, Equalities and Communication Safeguarding Group",DARLINGTON BOROUGH COUNCIL,4000236260,44333.40,Grants to local authorities / other establishments within aggregate external funding or aggregate exchequer grant
Department for Education,DEPARTMENT FOR EDUCATION,29/04/2016,Grants,"Children's Services, Equalities and Communication Safeguarding Group",DORSET COUNTY COUNCIL,4000236261,44333.40,Grants to local authorities / other establishments within aggregate external funding or aggregate exchequer grant
Department for Education,DEPARTMENT FOR EDUCATION,29/04/2016,Grants,"Children's Services, Equalities and Communication Safeguarding Group",DERBY CITY COUNCIL,4000236262,80583.45,Grants to local authorities / other establishments within aggregate external funding or aggregate exchequer grant
Department for Education,DEPARTMENT FOR EDUCATION,29/04/2016,Grants,"Children's Services, Equalities and Communication Safeguarding Group",SALFORD CITY COUNCIL,4000236267,50983.41,Grants to local authorities / other establishments within aggregate external funding or aggregate exchequer grant
Department for Education,DEPARTMENT FOR EDUCATION,29/04/2016,Grants,"Children's Services, Equalities and Communication Safeguarding Group",BUCKINGHAMSHIRE COUNTY COUNCIL,4000236270,44116.73,Grants to local authorities / other establishments within aggregate external funding or aggregate exchequer grant
Department for Education,DEPARTMENT FOR EDUCATION,29/04/2016,Grants,"Children's Services, Equalities and Communication Safeguarding Group",HAMPSHIRE C C,4000236272,60983.41,Grants to local authorities / other establishments within aggregate external funding or aggregate exchequer grant
Department for Education,DEPARTMENT FOR EDUCATION,29/04/2016,Grants,"Children's Services, Equalities and Communication Safeguarding Group",LONDON BOROUGH OF BROMLEY COUNCIL,4000236304,67500.10,Grants to local authorities / other establishments within aggregate external funding or aggregate exchequer grant
Department for Education,DEPARTMENT FOR EDUCATION,29/04/2016,Grants,"Children's Services, Equalities and Communication Safeguarding Group",SHEFFIELD CITY COUNCIL,4000236306,113050.17,Grants to local authorities / other establishments within aggregate external funding or aggregate exchequer grant
Department for Education,DEPARTMENT FOR EDUCATION,29/04/2016,Grants,"Children's Services, Equalities and Communication Safeguarding Group",METROPOLITAN BOROUGH OF WIRRAL,4000236308,59850.09,Grants to local authorities / other establishments within aggregate external funding or aggregate exchequer grant
Department for Education,DEPARTMENT FOR EDUCATION,29/04/2016,Grants,"Children's Services, Equalities and Communication Safeguarding Group",LONDON BOROUGH OF HAMMERSMITH & FULHAM COUNCIL,4000236333,73150.11,Grants to local authorities / other establishments within aggregate external funding or aggregate exchequer grant
Department for Education,DEPARTMENT FOR EDUCATION,07/04/2016,Miscellaneous Expenditure,Finance and Commercial Group,N/A � Risk Protection Arrangement (RPA) member,005921-000569-TE-01,83321.00,Property claim paid out to an academy trust by Gallagher Bassett on behalf of the Department as part of the Department's Risk Protection Arrangement (RPA).
Department for Education,DEPARTMENT FOR EDUCATION,07/04/2016,Miscellaneous Expenditure,Finance and Commercial Group,N/A � Risk Protection Arrangement (RPA) member,005921-000620-RB-01,27459.68,Property claim paid out to an academy trust by Gallagher Bassett on behalf of the Department as part of the Department's Risk Protection Arrangement (RPA).
Department for Education,DEPARTMENT FOR EDUCATION,11/04/2016,Miscellaneous Expenditure,Finance and Commercial Group,N/A � Risk Protection Arrangement (RPA) member,005921-000736-TE-01,50000.00,Property claim paid out to an academy trust by Gallagher Bassett on behalf of the Department as part of the Department's Risk Protection Arrangement (RPA).
Department for Education,DEPARTMENT FOR EDUCATION,30/04/2016,Redactions,Various,Various,Various,5699510319.47,"The total redacted transactions, including funding payment to Education Funding Agency. See Technical Notes for further information."
